{"text_format":"3","workbook":"xlsx","n_sheets":41,"sheets":["modList01","Инструкция","Лог обновления","Титульный","Список МО","Показатели (факт)","Показатели (2)","Потр. характеристики","Инвестиции","Инвестиции исправления","Ссылки на публикации","Комментарии","Проверка","AllSheetsInThisWorkbook","TEHSHEET","et_union_hor","et_union_vert","modInfo","modRegion","modReestr","modfrmSelectData","modfrmReestr","modUpdTemplMain","REESTR_ORG","modClassifierValidate","modProv","modHyp","modList00","modList02","modList03","modList04","modList05","modList06","modList07","modfrmDateChoose","modComm","modThisWorkbook","REESTR_MO","modfrmReestrMR","modfrmCheckUpdates","CopyList"],"not_rendered":{"images":21,"macros":1,"external_links":1,"defined_names":178},"read":"whole","date_system":"1900"}

{"sheet":"modList01","index":0,"n_rows":0,"n_cols":0,"rows_kept":0,"hidden":true}

{"sheet":"Инструкция","index":1,"n_rows":102,"n_cols":27,"rows_kept":102,"merged":[[1,1,1,6],[2,1,2,2],[4,1,4,24],[6,4,18,23],[20,5,20,12],[20,15,20,23],[21,5,21,12],[21,15,21,23],[22,15,22,22],[34,4,38,23],[39,4,39,23],[40,4,44,23],[45,4,56,23],[57,4,57,6],[57,7,57,23],[58,4,58,6],[58,7,58,23],[59,4,59,6],[59,7,59,23],[60,7,60,23],[69,4,69,23],[70,4,70,23],[71,4,71,23],[72,4,72,23],[73,4,73,23],[74,4,74,23],[75,4,75,23],[76,4,76,23],[78,4,78,23],[79,4,79,7],[79,8,79,23],[80,4,80,6],[80,7,80,23],[81,4,81,6],[81,7,81,23],[82,4,82,6],[82,7,82,23],[83,7,83,23],[97,4,97,23],[99,5,99,18],[101,5,101,23]]}
[{"$nulls":26}," (требуется обновление)"]
[null,{"$f":"\"Код шаблона: \" & GetCode()","v":"Код шаблона: JKH.OPEN.INFO.BALANCE.WARM"}]
[null,{"$f":"\"Версия \" & GetVersion()","v":"Версия 6.0.1"}]
[]
[null,"Показатели, подлежащие раскрытию теплоснабжающими, теплосетевыми организациями"]
[]
[{"$nulls":4},"• На рабочем месте должен быть установлен MS Office 2003 SP3, 2007 SP3, 2010 с полной версией MS Excel\n\n• Макросы во время работы должны быть включены (!)\n\n• Для корректной работы отчёта требуется выбрать низкий уровень безопасности\n(В меню MS Excel 2003: Сервис | Макрос | Безопасность | выбрать пункт «Низкая безопасность» | OK)\n(В меню MS Excel 2007/2010: Параметры Excel | Центр управления безопасностью | Параметры центра управления безопасностью | Параметры макросов | Включить все макросы | ОК)\n\n• Если Вы работаете в табличном процессоре MS Excel 2007 и выше, то можете использовать для работы формат XLSM (Книга Excel с поддержкой макросов). При работе в формате XLSM заметно быстрее происходит сохранение файла, а также уменьшается размер по сравнению с форматом XLS\n\n• Не рекомендуется снимать защиту с листов и каким-либо образом модифицировать защищаемые формулы и расчётные поля, в противном случае, отчёт будет отклонён системой\n\n• При сохранении не следует выбирать формат XLSX (Книга Excel), так как в указанном формате макросы, необходимые для работы отчёта, безвозвратно удаляются"]
{"$rows_empty":13}
[{"$nulls":4},"A"," - необязательные для заполнения",{"$nulls":8},"A"," - с формулами и константами"]
[{"$nulls":4},"A"," - обязательные для заполнения",{"$nulls":8},"A"," - с выбором значений до двойному клику,"]
[{"$nulls":15},"либо с возможностью выбора даты из календаря или ручного ввода"]
{"$rows_empty":11}
[{"$nulls":4},"Если в предложенном Вам списке необходимая организация, МР/МО отсутствуют, обновите реестры с помощью кнопок\n\nВ результате синхронизации с базой данных список организаций (МР/МО) будет заменён актуальным (механизм синхронизации требует подключения к сети Интернет и основан на использовании протокола HTTPS (TCP порт 443))\n\nЕсли после обновления Вам не удалось найти необходимую организацию в списке, обратитесь к ответственному за поддержание реестра Вашего региона. Информация о региональных органах регулирования доступна по ссылке:"]
[]
[]
[]
[]
[{"$nulls":4},"http://www.fstrf.ru/regions/region/showlist"]
[]
[]
[]
[]
[]
[{"$nulls":4},"• При сохранении шаблона осуществляется проверка корректности данных, в том числе на наличие значений в ячейках, обязательных для заполнения\n\n• Если какая-то ячейка не удовлетворяет условию проверки, на лист «Проверка» добавляется гиперссылка на данную ячейку и указывается причина ошибки\n\n• В колонке «Статус» для каждого сообщения возможны 2 значения: ошибка и предупреждение\n\n• При наличии сообщений со статусом «Ошибка» шаблон будет отклонён системой и не будет загружен в хранилище данных, сообщения со статусом «Предупреждение» носят информационный характер, и такой шаблон будет принят системой"]
{"$rows_empty":11}
[{"$nulls":4},"Web-сайт:",null,null,"http://support.eias.ru/index.php?a=add&catid=5"]
[{"$nulls":4},"Дистрибутивы:",null,null,"http://eias.ru/?page=show_distrs"]
[{"$nulls":7},"для устранения ошибок (например, \"Compile error in hidden module\")"]
{"$rows_empty":9}
[{"$nulls":4},"Принципы работы с шаблоном"]
[{"$nulls":4}," Перед началом работы с шаблоном Вам необходимо нажать кнопку \"Приступить к заполнению\", после чего на форме выбора выбрать из выпадающего списка нужный субъект РФ. После выбора субъекта РФ в шаблоне отобразятся листы для заполнения."]
[{"$nulls":4}," На листе «Титульный» нужно заполнить все ячейки голубого и синего цвета.\n Для создания печатной формы нажмите на иконку принтера на листе «Титульный» (левый верхний угол)."]
[{"$nulls":4}," Гиперссылки на листах вводите, не нарушая цвет ячейки (если копируете гиперссылку из браузера, то выполните двойной щелчок левой кнопки мыши по ячейке и только после этого можете вставить скопированный элемент).\n"]
[{"$nulls":4}," При вводе даты на расчетных листах необходимо выбрать дату из календаря (иконка справа от выбранной ячейки), либо ввести дату непосредственно в ячейку в формате - 'ДД.ММ.ГГГГ'."]
[{"$nulls":4}," Если какой-либо из показателей на расчетных листах для Вашей организации отсутствует, введите в поле, обязательное для заполнение, «0» (для числовых показателей) и «-» (для текстовых).\n"]
[{"$nulls":4}," Внимательно следите за информационными сообщениями на расчетных листах."]
[{"$nulls":4}," Все необходимые комментарии по всем формам Вы можете отразить на листе «Комментарии»."]
[]
[{"$nulls":4},"Обосновывающие материалы (документы) необходимо загружать с помощью \"ЕИАС Мониторинг\""]
[{"$nulls":4},"Инструкция",{"$nulls":3},"http://eias.ru/files/shablon/manual_loading_through_monitoring.pdf"]
[]
[{"$nulls":4},"E-mail:",null,null,"openinfo@eias.ru"]
[{"$nulls":4},"Web-сайт:",null,null,"http://eias.ru/?page=show_templates"]
{"$rows_empty":14}
[{"$nulls":4},"При наличии подключения к Интернет, можно автоматически проверять наличие доступных обновлений. Выберите способ оповещения о наличии обновлений для отчёта:"]
[]
[{"$nulls":5},"проверять доступные обновления (рекомендуется)",{"$nulls":20},"y"]
[]
[{"$nulls":5},"никогда не проверять наличие обновлений (не рекомендуется)"]

{"sheet":"Лог обновления","index":2,"n_rows":30,"n_cols":3,"rows_kept":30,"hidden":true}
["Дата/Время","Сообщение","Статус"]
[]
["2014-01-15T10:40:00","Проверка доступных обновлений...","Информация"]
["2014-01-15T10:40:01","Версия шаблона 6.0 актуальна, обновление не требуется","Информация"]
["2014-04-11T11:39:45","Проверка доступных обновлений...","Информация"]
["2014-04-11T11:39:45","Доступно обновление до версии 6.0.1","Информация"]
["2014-04-11T11:39:45","Описание изменений: Версия 6.0.1 (только(!!!) для шаблонов версии 6.0)\n1. корректировка наименования п.4 (новое значение - \"Сведения об изменении стоимости основных фондов (в том числе за счет их ввода в эксплуатацию (вывода из эксплуатации)), их переоценки\") листа \"Показатели (факт)\",\n2. корректировка п.5, п.5.1 в части возможности ввода отрицательных значений,\n3. увеличение списка видов деятельности на листе \"Титульный\".\n\n\nЕсли версия Вашего шаблона ниже 6.0, обратитесь к администратору Вашего субъекта РФ.","Информация"]
["2014-04-11T11:39:45","Размер файла обновления: 282624 байт","Информация"]
["2014-04-11T11:39:49","Подготовка к обновлению...","Информация"]
["2014-04-11T11:39:55","Сохранение файла резервной копии: C:\\Users\\borinskih\\Desktop\\Запросы через ЕИАС Мониторинг\\2014\\15 01 Багно\\ШАБЛОНЫ В ОБЩЕМ МАССИВЕ\\11.BKP.xlsm","Информация"]
["2014-04-11T11:39:56","Резервная копия создана: C:\\Users\\borinskih\\Desktop\\Запросы через ЕИАС Мониторинг\\2014\\15 01 Багно\\ШАБЛОНЫ В ОБЩЕМ МАССИВЕ\\11.BKP.xlsm","Информация"]
["2014-04-11T11:39:56","Создание книги для установки обновлений...","Информация"]
["2014-04-11T11:39:58","Файл обновления загружен: C:\\Users\\borinskih\\Desktop\\Запросы через ЕИАС Мониторинг\\2014\\15 01 Багно\\ШАБЛОНЫ В ОБЩЕМ МАССИВЕ\\UPDATE.JKH.OPEN.INFO.BALANCE.WARM.TO.6.0.1.40.xls","Информация"]
["2014-04-11T11:40:02","Обновление завершилось удачно! Шаблон JKH.OPEN.INFO.BALANCE.WARM.xlsm сохранен под именем 'JKH.OPEN.INFO.BALANCE.WARM(v6.0.1).xlsm'","Информация"]
["2016-05-20T09:15:35","Проверка доступных обновлений...","Информация"]
["2016-05-20T09:15:36","Версия шаблона 6.0.1 актуальна, обновление не требуется","Информация"]
["2016-05-20T10:18:41","Проверка доступных обновлений...","Информация"]
["2016-05-20T10:18:42","Версия шаблона 6.0.1 актуальна, обновление не требуется","Информация"]
["2016-05-23T08:22:50","Проверка доступных обновлений...","Информация"]
["2016-05-23T08:22:53","Версия шаблона 6.0.1 актуальна, обновление не требуется","Информация"]
["2016-05-23T09:41:45","Проверка доступных обновлений...","Информация"]
["2016-05-23T09:41:45","Версия шаблона 6.0.1 актуальна, обновление не требуется","Информация"]
["2016-05-24T08:48:55","Проверка доступных обновлений...","Информация"]
["2016-05-24T08:48:56","Версия шаблона 6.0.1 актуальна, обновление не требуется","Информация"]
["2016-05-24T14:10:36","Проверка доступных обновлений...","Информация"]
["2016-05-24T14:10:39","Версия шаблона 6.0.1 актуальна, обновление не требуется","Информация"]
["2016-05-24T14:25:13","Проверка доступных обновлений...","Информация"]
["2016-05-24T14:25:14","Версия шаблона 6.0.1 актуальна, обновление не требуется","Информация"]
["2017-04-12T13:37:26","Проверка доступных обновлений...","Информация"]
["2017-04-12T13:37:28","Версия шаблона 6.0.1 актуальна, обновление не требуется","Информация"]

{"sheet":"Титульный","index":3,"n_rows":56,"n_cols":6,"rows_kept":56,"merged":[[4,4,4,5]]}
[{"$nulls":5},27568933]
[]
[]
[{"$nulls":5},{"$f":"version","v":"Версия 6.0.1"}]
[{"$nulls":4},"Показатели, подлежащие раскрытию теплоснабжающими, теплосетевыми организациями"]
[]
[{"$nulls":4},"Субъект РФ","Республика Хакасия"]
[]
[{"$nulls":4},"Публикация","На сайте регулирующего органа"]
[]
["Сайт организации в сети Интернет",{"$nulls":3},"По желанию организации информация раскрыта в дополнительных источниках публикации?","да"]
[]
[{"$nulls":4},"Отчетный период (год)",2015]
[]
[{"$nulls":4},"Является ли данное юридическое лицо подразделением (филиалом) другой организации","нет"]
[]
[{"$nulls":4},"Наименование организации","ОП ЗАО \"Байкалэнерго\" - \"Саяногорские тепловые сети\""]
[{"$nulls":4},"Наименование филиала"]
[{"$nulls":4},"ИНН","3808108339"]
[{"$nulls":4},"КПП","381201001"]
[]
[{"$nulls":4},"Вид деятельности","Производство (некомбинированная выработка)+передача+сбыт"]
[]
[{"$nulls":4},"Производство",""]
[{"$nulls":4},"Передача",""]
[{"$nulls":4},"Сбыт",""]
[]
[{"$nulls":4},"Режим налогообложения","общий"]
[]
[{"$nulls":4},"Регулируемая организация осуществляет сдачу годового бухгалтерского баланса в налоговые органы","да"]
[]
[{"$nulls":4},"Дата направления годового бухгалтерского баланса в налоговые органы","25.03.2016"]
[]
[{"$nulls":4},"Превышает ли выручка от регулируемой деятельности 80% совокупной выручки за отчетный год","да"]
[]
[{"$nulls":4},"Организация выполняет инвестиционную программу","нет"]
[]
["Печатное издание",{"$nulls":3},"Отсутствует Интернет в границах территории муниципальных образований, где организация осуществляет регулируемые услуги","нет"]
[]
[{"$nulls":5},"Адрес регулируемой организации"]
[{"$nulls":4},"Юридический адрес","664043, Российская Федерация, Иркутская область, \nгород Иркутск, \nбульвар Рябикова, дом 67"]
[{"$nulls":4},"Почтовый адрес","655503, РХ г.Саяногорск\nУл.Индустриальная, 19"]
[]
[{"$nulls":5},"Руководитель"]
[{"$nulls":4},"Фамилия, имя, отчество","Алферов Михаил Алексеевич"]
[{"$nulls":4},"(код) номер телефона","8 (39042) 6-31-84"]
[]
[{"$nulls":5},"Главный бухгалтер"]
[{"$nulls":4},"Фамилия, имя, отчество","-"]
[{"$nulls":4},"(код) номер телефона","-"]
[]
[{"$nulls":5},"Должностное лицо, ответственное за составление формы"]
[{"$nulls":4},"Фамилия, имя, отчество","Зыкина Людмила Игоревна"]
[{"$nulls":4},"Должность","экономист"]
[{"$nulls":4},"(код) номер телефона","8 (39042) 2-84-91"]
[{"$nulls":4},"e-mail","zikina_li@nitec.irkutskenergo.ru"]

{"sheet":"Список МО","index":4,"n_rows":16,"n_cols":8,"rows_kept":16,"merged":[[3,3,3,7],[4,3,4,7],[6,5,6,7],[7,5,7,7],[8,5,8,7],[13,3,14,3],[13,4,14,4]]}
[]
[]
[]
[{"$nulls":3},"Дифференциация тарифа"]
[{"$nulls":3},{"$f":"IF(org=0,\"Не определено\",org)","v":"ОП ЗАО \"Байкалэнерго\" - \"Саяногорские тепловые сети\""}]
[]
[{"$nulls":5},"Система теплоснабжения"]
[{"$nulls":4},"Условный порядковый номер",1]
[{"$nulls":4},"Описание","г. Саяногорск, п. Майна, рп. Черемушки"]
[]
[{"$nulls":3},"№ п/п","Муниципальный район","№ п/п","Муниципальное образование","ОКТМО"]
[{"$nulls":3},"1","2","3","4","5"]
[{"$nulls":3},0,null,0]
[null,null,"О",1,"город Саяногорск",1,"город Саяногорск","95708000"]
[{"$nulls":6},"Добавить МО"]
[{"$nulls":4},"Добавить МР"]

{"sheet":"Показатели (факт)","index":5,"n_rows":87,"n_cols":8,"rows_kept":87,"merged":[[4,3,4,6],[5,3,5,6],[17,0,21,0],[22,0,26,0],[86,4,86,6]]}
[]
[]
[]
[]
[{"$nulls":3},"Информация об основных показателях финансово-хозяйственной деятельности регулируемых организаций, включая структуру основных производственных затрат\n(в части регулируемой деятельности) *"]
[{"$nulls":3},{"$f":"IF(org=0,\"Не определено\",org)","v":"ОП ЗАО \"Байкалэнерго\" - \"Саяногорские тепловые сети\""}]
[]
[{"$nulls":3},"№ п/п","Информация, подлежащая раскрытию","Единица измерения","Значение"]
[{"$nulls":3},"1","2","3","4"]
[{"$nulls":3},"1","Выручка от регулируемой деятельности, в том числе по видам деятельности:","тыс руб",{"$f":"SUM(G11:G13)","v":{"v":518227.32511986,"d":"518,227.33"}}]
[{"$nulls":3},"1.0"]
[null,null,"О","1.1","Проиизводство (некомбинированная выработка) + передача + сбыт","тыс руб",{"$f":"'[1]РСБУ ПФ с 26 счетом'!$CL$50","v":{"v":518227.32511986,"d":"518,227.33"}}]
[{"$nulls":4},"Добавить вид деятельности"]
[{"$nulls":3},"2","Себестоимость производимых товаров (оказываемых услуг) по регулируемому виду деятельности, включая: ","тыс руб",{"$f":"SUM(G15:G16)+G29+SUM(G32:G40)+G43+G46+G48","v":{"v":760086.4511627001,"d":"760,086.45"}}]
[{"$nulls":3},"2.1","Расходы на покупаемую тепловую энергию (мощность), теплоноситель","тыс руб",{"v":250029.5,"d":"250,029.50"}]
[{"$nulls":3},"2.2","Расходы на топливо","тыс руб",{"$f":"SUMIF(flagSum_List02_2,\"p\",G17:G28)","v":{"v":158057.47116269998,"d":"158,057.47"}}]
["2.2.0",null,null,{"$f":"A17","v":"2.2.0"}]
["2.2.1",null,"О",{"$f":"A18","v":"2.2.1"},"уголь каменный","x",{"$f":"G19*G20+G21","v":{"v":13128.2968427,"d":"13,128.30"}},"p"]
[{"$nulls":3},{"$f":"A18&\".1\"","v":"2.2.1.1"},"Объем","тонны",{"v":12178.27,"d":"12,178.27"}]
[{"$nulls":3},{"$f":"A18&\".2\"","v":"2.2.1.2"},"Стоимость за единицу объема","тыс руб",{"v":1.07801,"d":"1.08"}]
[{"$nulls":3},{"$f":"A18&\".3\"","v":"2.2.1.3"},"Стоимость доставки","тыс руб",{"v":0,"d":"0.00"}]
[{"$nulls":3},{"$f":"A18&\".4\"","v":"2.2.1.4"},"Способ приобретения","x","торги/аукционы"]
["2.2.2",null,"О",{"$f":"A23","v":"2.2.2"},"электроэнергия (ВН)","x",{"$f":"G24*G25+G26","v":{"v":144929.17432,"d":"144,929.17"}},"p"]
[{"$nulls":3},{"$f":"A23&\".1\"","v":"2.2.2.1"},"Объем","тыс кВт.ч",{"v":83524,"d":"83,524.00"}]
[{"$nulls":3},{"$f":"A23&\".2\"","v":"2.2.2.2"},"Стоимость за единицу объема","тыс руб",{"v":1.73518,"d":"1.74"}]
[{"$nulls":3},{"$f":"A23&\".3\"","v":"2.2.2.3"},"Стоимость доставки","тыс руб",{"v":0,"d":"0.00"}]
[{"$nulls":3},{"$f":"A23&\".4\"","v":"2.2.2.4"},"Способ приобретения","x","торги/аукционы"]
[{"$nulls":4},"Добавить вид топлива"]
[{"$nulls":3},"2.3","Расходы на покупаемую электрическую энергию (мощность), используемую в технологическом процессе","тыс руб",{"v":32120.01,"d":"32,120.01"}]
[{"$nulls":3},"2.3.1","Средневзвешенная стоимость 1 кВт.ч (с учетом мощности)","руб",{"$f":"G29/G31","v":{"v":3.027904411764706,"d":"3.03"}}]
[{"$nulls":3},"2.3.2","Объем приобретенной электрической энергии","тыс кВт.ч",{"v":10608,"d":"10,608.0000"}]
[{"$nulls":3},"2.4","Расходы на приобретение холодной воды, используемой в технологическом процессе","тыс руб",739.74]
[{"$nulls":3},"2.5","Расходы на хим.реагенты, используемые в технологическом процессе","тыс руб",{"v":0,"d":"0.00"}]
[{"$nulls":3},"2.6","Расходы на оплату труда основного производственного персонала","тыс руб",{"v":32838.14,"d":"32,838.14"}]
[{"$nulls":3},"2.7","Отчисления на социальные нужды основного производственного персонала","тыс руб",{"v":9847.46,"d":"9,847.46"}]
[{"$nulls":3},"2.8","Расходы на оплату труда административно-управленческого персонала","тыс руб",{"$f":"20812.85+8654","v":{"v":29466.85,"d":"29,466.85"}}]
[{"$nulls":3},"2.9","Отчисления на социальные нужды административно-управленческого персонала","тыс руб",{"$f":"5780.8+2132","v":{"v":7912.8,"d":"7,912.80"}}]
[{"$nulls":3},"2.10","Расходы на амортизацию основных производственных средств","тыс руб",{"v":2699.11,"d":"2,699.11"}]
[{"$nulls":3},"2.11","Расходы на аренду имущества, используемого для осуществления регулируемого вида деятельности","тыс руб",{"v":2220.52,"d":"2,220.52"}]
[{"$nulls":3},"2.12","Общепроизводственные расходы, в том числе отнесенные к ним:","тыс руб",{"v":45880.56,"d":"45,880.56"}]
[{"$nulls":3},"2.12.1","Расходы на текущий ремонт","тыс руб",{"v":0,"d":"0.00"}]
[{"$nulls":3},"2.12.2","Расходы на капитальный ремонт","тыс руб",{"v":0,"d":"0.00"}]
[{"$nulls":3},"2.13","Общехозяйственные расходы, в том числе отнесенные к ним:","тыс руб",{"$f":"7817.06+8599.93+4036.95+19250.1+8118.47","v":{"v":47822.51,"d":"47,822.51"}}]
[{"$nulls":3},"2.13.1","Расходы на текущий ремонт","тыс руб",{"v":0,"d":"0.00"}]
[{"$nulls":3},"2.13.2","Расходы на капитальный ремонт","тыс руб",{"v":0,"d":"0.00"}]
[{"$nulls":3},"2.14","Расходы на капитальный и текущий ремонт основных производственных средств, в том числе:","тыс руб",{"v":0,"d":"0.00"}]
[{"$nulls":3},"2.14.1","Информация об объемах товаров и услуг, их стоимости и способах приобретения у тех организаций, сумма оплаты услуг которых превышает 20 процентов суммы расходов по указанной статье расходов","x","отсутствует"]
[{"$nulls":3},"2.15","Прочие расходы, которые подлежат отнесению на регулируемые виды деятельности в соответствии с законодательством РФ","тыс руб",{"$f":"SUM(G49:G57)","v":{"v":140451.78,"d":"140,451.78"}}]
[{"$nulls":3},"2.15.0"]
[null,null,"О","2.15.1","Плата за выбросы, размещение отходов","тыс руб",70.81]
[null,null,"О","2.15.2","Расходы на обязательное страхование","тыс руб",29.02]
[null,null,"О","2.15.3","Услуги банков","тыс руб",329.26]
[null,null,"О","2.15.4","Налог на имущество","тыс руб",552.55]
[null,null,"О","2.15.5","Расходы по сомнительным долгам","тыс руб",{"v":107536.78,"d":"107,536.78"}]
[null,null,"О","2.15.6","Проценты к уплате по займам полученным","тыс руб",{"v":29048.02,"d":"29,048.02"}]
[null,null,"О","2.15.7","Прибыль на социалную программу","тыс руб",{"v":2885.34,"d":"2,885.34"}]
[{"$nulls":4},"Добавить прочие расходы"]
[{"$nulls":3},"3","Валовая прибыль (убытки) от реализации товаров и оказания услуг по регулируемому виду деятельности","тыс руб",{"$f":"List02_p1-List02_p3","v":{"v":-241859.12604284007,"d":"-241,859.13"}}]
[{"$nulls":3},"4","Чистая прибыль, полученная от регулируемого вида деятельности, в том числе:","тыс руб",{"v":0,"d":"0.00"}]
[{"$nulls":3},"4.1","Размер расходования чистой прибыли на финансирование мероприятий, предусмотренных инвестиционной программой","тыс руб",{"v":0,"d":"0.00"}]
[{"$nulls":3},"5","Сведения об изменении стоимости основных фондов, в том числе за счет их ввода в эксплуатацию (вывода из эксплуатации), а также стоимости их переоценки","тыс руб",{"v":0,"d":"0.00"}]
[{"$nulls":3},"5.1","За счет ввода (вывода) из эксплуатации","тыс руб",{"v":0,"d":"0.00"}]
[{"$nulls":3},"6","Стоимость переоценки основных фондов","тыс руб",{"v":0,"d":"0.00"}]
[{"$nulls":3},"7","Годовая бухгалтерская отчетность, включая бухгалтерский баланс и приложения к нему","x","http://www.irkutskenergo.ru/"]
[{"$nulls":3},"8","Установленная тепловая мощность объектов основных фондов, используемых для осуществления регулируемых видов деятельности, в том числе по каждому источнику тепловой энергии:","Гкал/ч",{"$f":"G67+G68","v":{"v":72.9,"d":"72.90"}}]
[{"$nulls":3},"8.0"]
[null,null,"О","8.1","электрокотельная №1","Гкал/ч",{"v":30.9,"d":"30.90"}]
[null,null,"О","8.2","угольная котельная","Гкал/ч",{"v":42,"d":"42.00"}]
[{"$nulls":4},"Добавить источник тепловой энергии"]
[{"$nulls":3},"9","Тепловая нагрузка по договорам, заключенным в рамках осуществления регулируемых видов деятельности","Гкал/ч",{"v":208.046,"d":"208.05"}]
[{"$nulls":3},"10","Объем вырабатываемой регулируемой организацией тепловой энергии в рамках осуществления регулируемых видов деятельности","тыс Гкал",{"v":111.59,"d":"111.5900"}]
[{"$nulls":3},"11","Объем приобретаемой регулируемой организацией тепловой энергии в рамках осуществления регулируемых видов деятельности","тыс Гкал",{"v":352.27,"d":"352.2700"}]
[{"$nulls":3},"12","Объем тепловой энергии, отпускаемой потребителям по договорам, заключенным в рамках осуществления регулируемых видов деятельности, в том числе:","тыс Гкал",{"$f":"SUM(G74:G75)","v":{"v":360.17999999999995,"d":"360.1800"}}]
[{"$nulls":3},"12.1","Определенном по приборам учета","тыс Гкал",{"v":298.21,"d":"298.2100"}]
[{"$nulls":3},"12.2","Определенном расчетным путем (нормативам потребления коммунальных услуг)","тыс Гкал",{"v":61.97,"d":"61.9700"}]
[{"$nulls":3},"13","Нормативы технологических потерь при передаче тепловой энергии, теплоносителя по тепловым сетям, утвержденные уполномоченным органом","Ккал/ч.мес",{"v":6547328.77,"d":"6,547,328.77"}]
[{"$nulls":3},"14","Фактический объем потерь при передаче тепловой энергии","тыс Гкал",{"v":98.28,"d":"98.2800"}]
[{"$nulls":3},"15","Среднесписочная численность основного производственного персонала"," чел",{"v":103,"d":"103.00"}]
[{"$nulls":3},"16","Среднесписочная численность административно-управленческого персонала"," чел",{"v":44,"d":"44.00"}]
[{"$nulls":3},"17","Удельный расход условного топлива на единицу тепловой энергии, отпускаемой в тепловую сеть, в том числе с разбивкой по источникам тепловой энергии, используемым для осуществления регулируемых видов деятельности","кг усл. топл/Гкал",{"v":209.6,"d":"209.6000"}]
[{"$nulls":3},"17.0"]
[{"$nulls":4},"Добавить источник тепловой энергии"]
[{"$nulls":3},"18","Удельный расход электрической энергии на производство (передачу) тепловой энергии на единицу тепловой энергии, отпускаемой потребителям по договорам, заключенным в рамках осуществления регулируемой деятельности","тыс кВт.ч/Гкал",{"v":1186.73,"d":"1,186.73"}]
[{"$nulls":3},"19","Удельный расход холодной воды на производство (передачу) тепловой энергии на единицу тепловой энергии, отпускаемой потребителям по договорам, заключенным в рамках осуществления регулируемой деятельности","м3/Гкал",{"v":3.1,"d":"3.10"}]
[{"$nulls":3},"20","Комментарии","x","-"]
[]
[{"$nulls":3},"*","Раскрывается не позднее 30 дней со дня сдачи годового бухгалтерского баланса в налоговые органы."]

{"sheet":"Показатели (2)","index":6,"n_rows":14,"n_cols":16,"rows_kept":14,"hidden":true,"merged":[[4,3,4,8],[5,3,5,8],[9,4,9,13]]}
[]
[]
[]
[]
[{"$nulls":3},"Информация об объемах товаров и услуг, их стоимости и способах приобретения *"]
[{"$nulls":3},{"$f":"IF(org=0,\"Не определено\",org)","v":"ОП ЗАО \"Байкалэнерго\" - \"Саяногорские тепловые сети\""}]
[]
[{"$nulls":3},"№ п/п","Наименование поставщика",null,"№ п/п","Способ приобретения","Реквизиты договора",null,"№ п/п","Наименование товара/услуги","Объем приобретенных товаров, услуг","Единица измерения объема","Стоимость, тыс.руб.","Доля расходов, % (от суммы расходов по указанной статье)"]
[{"$nulls":3},"1","2",null,"3","4","5",null,"6","7","8","9","10","11"]
[{"$nulls":4},"Расходы на ремонт (текущий и капитальный) основных производственных средств итого. Из них товары и услуги, приобретенные у организаций, сумма оплаты услуг которых превышает 20% суммы расходов по статье",{"$nulls":9},{"$f":"List02_costs_OPS","v":{"v":0,"d":"0.00"}}]
[{"$nulls":3},"0"]
[{"$nulls":4},"Добавить поставщика"]
[]
[{"$nulls":3},"*","Раскрывается не позднее 30 дней со дня сдачи годового бухгалтерского баланса в налоговые органы."]

{"sheet":"Потр. характеристики","index":7,"n_rows":18,"n_cols":7,"rows_kept":18,"merged":[[4,3,4,6],[5,3,5,6],[16,4,16,6]]}
[]
[]
[]
[]
[{"$nulls":3},"Информация об основных потребительских характеристиках регулируемых товаров и услуг *"]
[{"$nulls":3},{"$f":"IF(org=0,\"Не определено\",org)","v":"ОП ЗАО \"Байкалэнерго\" - \"Саяногорские тепловые сети\""}]
[]
[{"$nulls":3},"№ п/п","Информация, подлежащая раскрытию","Значение","Ссылки на документы"]
[{"$nulls":3},"1","2","3","4"]
[{"$nulls":3},1,"Количество аварий на тепловых сетях (единиц на км) **",{"v":0,"d":"0.00"}]
[{"$nulls":3},"2","Количество аварий на источниках тепловой энергии (единиц на источник)**",{"v":0,"d":"0.00"}]
[{"$nulls":3},"3","Показатели надежности и качества, установленные в соответствии с законодательством РФ",1.18,"http://www.consultant.ru/document/cons_doc_LAW_166505/5e74fede7edc55bdb0f7d63ad02867f1357b0a9b/"]
[{"$nulls":3},"4","Доля числа исполненных в срок договоров о подключении (технологическом присоединении), %",{"v":100,"d":"100.00"}]
[{"$nulls":3},"5","Средняя продолжительность рассмотрения заявок на подключение (технологическое присоединение), дней",{"v":10,"d":"10.00"}]
[{"$nulls":3},"6","Комментарии","п.3  удельное колическтво перерывов в подаче тепла  (ед/км)"]
[]
[{"$nulls":3},"*","Раскрывается не позднее 30 дней со дня сдачи годового бухгалтерского баланса в налоговые органы."]
[{"$nulls":3},"**","Учитывать любое нарушение системы."]

{"sheet":"Инвестиции","index":8,"n_rows":89,"n_cols":10,"rows_kept":89,"hidden":true,"merged":[[4,4,4,7],[5,4,5,7],[18,0,20,0],[71,0,73,0],[76,0,80,0],[81,0,85,0]]}
[]
[]
[]
[]
[{"$nulls":4},"Информация об инвестиционных программах *"]
[{"$nulls":4},{"$f":"IF(org=0,\"Не определено\",org)","v":"ОП ЗАО \"Байкалэнерго\" - \"Саяногорские тепловые сети\""}]
[]
[]
[{"$nulls":4},"№ п/п","Наименование показателя","Единица измерения","Значение",{"$f":"\"Мероприятие \" & I10-4","v":"Мероприятие 0"},"Добавить мероприятие"]
[{"$nulls":4},"1","2","3","4","4"]
[{"$nulls":4},1,"Наименование инвестиционной программы (мероприятия)","x"]
[{"$nulls":4},2,"Дата утверждения инвестиционной программы","x","","x"]
[{"$nulls":4},"3","Цели инвестиционной программы","x",null,"x"]
[{"$nulls":4},"4","Наименование органа исполнительной власти субъекта РФ, утвердившего инвестиционную программу","x",null,"x"]
[{"$nulls":4},"5","Наименование органа местного самоуправления, согласовавшего инвестиционную программу","x",null,"x"]
[{"$nulls":4},"6","Срок начала реализации инвестиционной программы (мероприятия)","x",""]
[{"$nulls":4},"7","Срок окончания реализации инвестиционной программы (мероприятия)","x"]
[{"$nulls":4},"8","Потребности в финансовых средствах, необходимых для реализации инвестиционной программы на год, в том числе по источникам финансирования","тыс руб",{"$f":"SUM(I18:J18)","v":{"v":0,"d":"0.00"}},{"$f":"SUMIF(List06_flag_year,\"y\",I19:I22)","v":{"v":0,"d":"0.00"}}]
["8.0",{"$nulls":3},{"$f":"A19","v":"8.0"},null,"тыс руб",{"$f":"SUM(H20:H21)","v":{"v":0,"d":"0.00"}},{"$f":"SUM(I20:I21)","v":{"v":0,"d":"0.00"}},"y"]
[null,1,null,null,{"$f":"A19&\".\"&B20","v":"8.0.1"},null,"тыс руб"]
[{"$nulls":5},"Добавить источники"]
[{"$nulls":5},"Добавить год"]
[{"$nulls":4},"9","Целевые показатели инвестиционной программы",null,"x","x"]
[{"$nulls":4},"9.1","Срок окупаемости","лет","x","x"]
[{"$nulls":4},"9.1.1","Факт","лет"]
[{"$nulls":4},"9.1.2","План","лет"]
[{"$nulls":4},"9.2","Перебои в снабжении потребителей","часов на потребителя","x","x"]
[{"$nulls":4},"9.2.1","Факт","часов на потребителя"]
[{"$nulls":4},"9.2.2","План","часов на потребителя"]
[{"$nulls":4},"9.3","Продолжительность (бесперебойность) поставки товаров и услуг","час/день","x","x"]
[{"$nulls":4},"9.3.1","Факт","час/день"]
[{"$nulls":4},"9.3.2","План","час/день"]
[{"$nulls":4},"9.4","Уровень потерь и неучтенного потребления","%","x","x"]
[{"$nulls":4},"9.4.1","Факт","%"]
[{"$nulls":4},"9.4.2","План","%"]
[{"$nulls":4},"9.5","Коэффициент потерь","Гкал/км","x","x"]
[{"$nulls":4},"9.5.1","Факт","Гкал/км"]
[{"$nulls":4},"9.5.2","План","Гкал/км"]
[{"$nulls":4},"9.6","Износ систем коммунальной инфраструктуры","%","x","x"]
[{"$nulls":4},"9.6.1","Факт","%"]
[{"$nulls":4},"9.6.2","План","%"]
[{"$nulls":4},"9.7","Износ оборудования производства (котлы)","%","x","x"]
[{"$nulls":4},"9.7.1","Факт","%"]
[{"$nulls":4},"9.7.2","План","%"]
[{"$nulls":4},"9.8","Износ оборудования передачи тепловой энергии (сети)","%","x","x"]
[{"$nulls":4},"9.8.1","Факт","%"]
[{"$nulls":4},"9.8.2","План","%"]
[{"$nulls":4},"9.9","Удельный вес сетей, нуждающихся в замене","%","x","x"]
[{"$nulls":4},"9.9.1","Факт","%"]
[{"$nulls":4},"9.9.2","План","%"]
[{"$nulls":4},"9.10","Обеспеченность потребления товаров и услуг приборами учета","%","x","x"]
[{"$nulls":4},"9.10.1","Факт","%"]
[{"$nulls":4},"9.10.2","План","%"]
[{"$nulls":4},"9.11","Расход топлива на 1 Гкал","т усл.топл/Гкал","x","x"]
[{"$nulls":4},"9.11.1","Факт","т усл.топл/Гкал"]
[{"$nulls":4},"9.11.2","План","т усл.топл/Гкал"]
[{"$nulls":4},"9.12","Расход электроэнергии на выработку 1 Гкал","кВт.ч/Гкал","x","x"]
[{"$nulls":4},"9.12.1","Факт","кВт.ч/Гкал"]
[{"$nulls":4},"9.12.2","План","кВт.ч/Гкал"]
[{"$nulls":4},"9.13","Расход электроэнергии на передачу 1 Гкал","кВт.ч/Гкал","x","x"]
[{"$nulls":4},"9.13.1","Факт","кВт.ч/Гкал"]
[{"$nulls":4},"9.13.2","План","кВт.ч/Гкал"]
[{"$nulls":4},"9.14","Количество аварий (с учетом котельных)","ед","x","x"]
[{"$nulls":4},"9.14.1","Факт","ед"]
[{"$nulls":4},"9.14.2","План","ед"]
[{"$nulls":4},"9.15","Количество аварий на 1 км тепловых сетей","ед","x","x"]
[{"$nulls":4},"9.15.1","Факт","ед"]
[{"$nulls":4},"9.15.2","План","ед"]
[{"$nulls":4},"9.16","Производительность труда на 1 человека","тыс руб/чел","x","x"]
[{"$nulls":4},"9.16.1","Факт","тыс руб/чел"]
[{"$nulls":4},"9.16.2","План","тыс руб/чел"]
["9.16",{"$nulls":3},{"$f":"A72","v":"9.16"},null,null,"x","x"]
[{"$nulls":4},{"$f":"A72&\".1\"","v":"9.16.1"},"Факт",{"$f":"IF(G72=\"\",\"x\",G72)","v":"x"}]
[{"$nulls":4},{"$f":"A72&\".2\"","v":"9.16.2"},"План",{"$f":"IF(G72=\"\",\"x\",G72)","v":"x"}]
[{"$nulls":5},"Добавить показатель"]
[{"$nulls":4},"10","Использование инвестиционных средств за отчетный год","тыс руб","x","x"]
["10.0",{"$nulls":3},{"$f":"A77","v":"10.0"},"Всего, в том числе по источникам финансирования:","тыс руб",{"$f":"SUM(I77:J77)","v":{"v":0,"d":"0.00"}},{"$f":"SUM(I78:I81)","v":{"v":0,"d":"0.00"}}]
[{"$nulls":4},{"$f":"A77&\".1\"","v":"10.0.1"},"I квартал","тыс руб",{"$f":"SUM(I78:J78)","v":{"v":0,"d":"0.00"}},{"$f":"SUMIF($F$82:$F$87,$F78,I$82:I$87)","v":{"v":0,"d":"0.00"}}]
[{"$nulls":4},{"$f":"A77&\".2\"","v":"10.0.2"},"II квартал","тыс руб",{"$f":"SUM(I79:J79)","v":{"v":0,"d":"0.00"}},{"$f":"SUMIF($F$82:$F$87,$F79,I$82:I$87)","v":{"v":0,"d":"0.00"}}]
[{"$nulls":4},{"$f":"A77&\".3\"","v":"10.0.3"},"III квартал","тыс руб",{"$f":"SUM(I80:J80)","v":{"v":0,"d":"0.00"}},{"$f":"SUMIF($F$82:$F$87,$F80,I$82:I$87)","v":{"v":0,"d":"0.00"}}]
[{"$nulls":4},{"$f":"A77&\".4\"","v":"10.0.4"},"IV квартал","тыс руб",{"$f":"SUM(I81:J81)","v":{"v":0,"d":"0.00"}},{"$f":"SUMIF($F$82:$F$87,$F81,I$82:I$87)","v":{"v":0,"d":"0.00"}}]
["10.0",{"$nulls":3},{"$f":"A82","v":"10.0"},null,"тыс руб",{"$f":"SUM(H83:H86)","v":{"v":0,"d":"0.00"}},{"$f":"SUM(I83:I86)","v":{"v":0,"d":"0.00"}}]
[{"$nulls":4},{"$f":"A82&\".1\"","v":"10.0.1"},"I квартал","тыс руб"]
[{"$nulls":4},{"$f":"A82&\".2\"","v":"10.0.2"},"II квартал","тыс руб"]
[{"$nulls":4},{"$f":"A82&\".3\"","v":"10.0.3"},"III квартал","тыс руб"]
[{"$nulls":4},{"$f":"A82&\".4\"","v":"10.0.4"},"IV квартал","тыс руб"]
[{"$nulls":5},"Добавить источники"]
[]
[{"$nulls":4},"*","Раскрывается не позднее 30 дней со дня сдачи годового бухгалтерского баланса в налоговые органы."]

{"sheet":"Инвестиции исправления","index":9,"n_rows":13,"n_cols":6,"rows_kept":13,"hidden":true,"merged":[[4,3,4,5],[5,3,5,5],[12,4,12,5]]}
[]
[]
[]
[]
[{"$nulls":3},"Внесение изменений в инвестиционную программу *"]
[{"$nulls":3},{"$f":"IF(org=0,\"Не определено\",org)","v":"ОП ЗАО \"Байкалэнерго\" - \"Саяногорские тепловые сети\""}]
[]
[{"$nulls":3},"№ п/п","Дата внесения изменений","Внесенные изменения"]
[{"$nulls":3},"1","2","3"]
[{"$nulls":3},"0"]
[{"$nulls":4},"Добавить строку"]
[]
[{"$nulls":3},"*","Раскрывается регулируемой организацией в течение 10 календарных дней со дня принятия органом исполнительной власти субъекта Российской Федерации решения о внесении изменений в инвестиционную программу"]

{"sheet":"Ссылки на публикации","index":10,"n_rows":18,"n_cols":11,"rows_kept":18,"merged":[[4,3,4,10],[5,3,5,10],[10,0,11,0],[10,4,10,10],[12,0,13,0],[12,4,12,10]]}
[]
[]
[]
[]
[{"$nulls":3},"Ссылки на публикации"]
[{"$nulls":3},{"$f":"IF(org=0,\"Не определено\",org)","v":"ОП ЗАО \"Байкалэнерго\" - \"Саяногорские тепловые сети\""}]
[]
[]
[{"$nulls":3},"№ п/п","Содержание","Наименование источника публикации","Дата размещения информации","Номер печатного издания","Дата печатного издания","Ссылка на PDF копии издания","Адрес страницы официального сайта организации в сети интернет, на которой размещена раскрываемая информация"]
[{"$nulls":3},"1","2","3","4","5","6","7","8"]
["1",null,null,{"$f":"A11","v":"1"},"Информация об основных показателях финансово-хозяйственной деятельности регулируемой организации, включая структуру основных производственных затрат (в части регулируемой деятельности) (п.19 Постановления Правительства Российской Федерации от 05 июля 2013 г. N 570 \"О стандартах раскрытия информации теплоснабжающими, теплосетевыми организациями и органами регулирования\")"]
[{"$nulls":3},{"$f":"A11&\".1\"","v":"1.1"},"Сайт организации в сети Интернет","официальный сайт Госкомтарифэнерго Хакасии","25.04.2016","x","x","x","http://www.r-19.ru/authorities/state-committee-on-tariffs-and-energy-of-the-republic-of-khakassia/common/"]
["2",null,null,{"$f":"A13","v":"2"},"Информация об основных потребительских характеристиках регулируемых товаров и услуг, оказываемых регулируемой организацией (п.20  Постановления Правительства Российской Федерации от 05 июля 2013 г. N 570 \"О стандартах раскрытия информации теплоснабжающими, теплосетевыми организациями и органами регулирования\")"]
[{"$nulls":3},{"$f":"A13&\".1\"","v":"2.1"},"Сайт организации в сети Интернет","официальный сайт ПАО \"Иркутскэнерго\"","25.04.2016","x","x","x","http://www.irkutskenergo.ru/"]
[{"$nulls":3},{"$f":"A13&\".2\"","v":"2.2"},"Печатное издание",{"$nulls":5},"x"]
[]
[]
[{"$nulls":4},"Добавить"]

{"sheet":"Комментарии","index":11,"n_rows":13,"n_cols":5,"rows_kept":13,"merged":[[6,3,6,4],[7,3,7,4]]}
[]
[]
[]
[]
[]
[]
[{"$nulls":3},"Комментарии"]
[{"$nulls":3},{"$f":"IF(org=0,\"Не определено\",org)","v":"ОП ЗАО \"Байкалэнерго\" - \"Саяногорские тепловые сети\""}]
[]
[{"$nulls":3},"№ п/п","Комментарий"]
[{"$nulls":3},"1","2"]
[{"$nulls":3},0]
[{"$nulls":4},"Добавить"]

{"sheet":"Проверка","index":12,"n_rows":5,"n_cols":5,"rows_kept":5,"merged":[[1,1,1,4]]}
[]
[null,"Результат проверки"]
[]
[null,"Ссылка1","Ссылка2","Причина","Статус"]
[null,"Ссылки на публикации!K12",null,"Не верно указана гиперссылка на адрес сайта в сети интернет!","Предупреждение"]

{"sheet":"AllSheetsInThisWorkbook","index":13,"n_rows":30,"n_cols":2,"rows_kept":30,"hidden":true}
["Расчетные листы","Скрытые листы"]
["Инструкция","AllSheetsInThisWorkbook"]
["Лог обновления","TEHSHEET"]
["Титульный","et_union_hor"]
["Список МО","et_union_vert"]
["Показатели (факт)","modInfo"]
["Показатели (2)","modRegion"]
["Потр. характеристики","modReestr"]
["Инвестиции","modfrmSelectData"]
["Инвестиции исправления","modfrmReestr"]
["Ссылки на публикации","modUpdTemplMain"]
["Комментарии","REESTR_ORG"]
["Проверка","modClassifierValidate"]
[null,"modProv"]
[null,"modHyp"]
[null,"modList00"]
[null,"modList01"]
[null,"modList02"]
[null,"modList03"]
[null,"modList04"]
[null,"modList05"]
[null,"modList06"]
[null,"modList07"]
[null,"modfrmDateChoose"]
[null,"modComm"]
[null,"modThisWorkbook"]
[null,"REESTR_MO"]
[null,"modfrmReestrMR"]
[null,"modfrmCheckUpdates"]
[null,"CopyList"]

{"sheet":"TEHSHEET","index":14,"n_rows":85,"n_cols":20,"rows_kept":85,"hidden":true,"merged":[[0,12,0,13],[0,16,0,17]]}
["REGION","Список с видами деятельности",null,"year_list","logical","Месяц\n(MONTH)","Квартал\n(QUARTER)","Месяц\n(kind_of_publication)","Режим налогообложения\n/kind_of_NDS/","Вид деятельности, на которую установлен тариф /kind_of_activity/","Вид услуги, на которую установлен тариф /kind_of_service_WARM/","Номер СЦХВ(СЦВО)\n/SKI_number/","Виды топлива\n/kind_of_fuels/",null,"цель инвестиционной программы /kind_of_purchase_method/","Источники финансирования\n/source_of_funding/","цель инвестиционной программы /objective_of_IPR/",null,null,"Рабочие диапазоны"]
["Алтайский край","kind_of_activity_01",null,2013,"да","январь","I квартал","На официальном сайте организации","общий","kind_of_activity_01","Производство","1","газ природный по регулируемой цене","тыс м3","торги/аукционы","кредиты банков","автоматизация (с уменьшением штата)",false,null,true]
["Амурская область",null,null,2014,"нет","февраль","II квартал","На сайте регулирующего органа","общий с учетом освобождения от уплаты НДС","Комбинированная выработка","Передача","2","газ природный по нерегулируемой цене","тыс м3","прямые договора без торгов","кредиты иностранных банков","уменьшение удельных затрат (повышение КПД)",false]
["Архангельская область",null,null,2015,null,"март","III квартал",null,"специальный (упрощенная система налогообложения, система налогообложения для сельскохозяйственных товаропроизводителей)","Некомбинированная выработка","Сбыт","3","газ сжиженный","кг","прочее","заемные ср-ва др. организаций","уменьшение издержек на производство",false]
["Астраханская область",null,null,2016,"logical_two","апрель","IV квартал",null,null,"Нет производства т/э",null,"4","газовый конденсат","тонны",null,"федеральный бюджет","снижение аварийности",false]
["Белгородская область",null,null,2017,"есть","май",null,null,"НДС для общего режима налогообложения\n/kind_of_NDS_tariff/","Смешанное производство",null,"5","гшз","тонны",null,"бюджет субъекта РФ","прочее",false]
["Брянская область",{"$nulls":3},"отсутствует","июнь",null,null,"тариф указан с НДС для плательщиков НДС",null,null,"6","мазут","тонны",null,"бюджет муниципального образования"]
["Владимирская область",{"$nulls":4},"июль",null,null,"тариф указан без НДС для плательщиков НДС","kind_of_activity_02",null,"7","нефть","тонны",null,"ср-ва внебюджетных фондов"]
["Волгоградская область",{"$nulls":4},"август",{"$nulls":3},"Комбинированная выработка",null,"8","дизельное топливо","тонны",null,"прибыль, направляемая на инвестиции"]
["Вологодская область",{"$nulls":4},"сентябрь",null,null,"НДС для прочих режимов налогообложения\n/kind_of_NDS_tariff_etc/","Некомбинированная выработка",null,"9","уголь бурый","тонны",null,"амортизация"]
["Воронежская область",{"$nulls":4},"октябрь",null,null,"тариф для организаций не являющихся плательщиками НДС","Смешанное производство",null,"10","уголь каменный","тонны",null,"инвестиционная надбавка к тарифу"]
["г.Байконур",{"$nulls":4},"ноябрь",{"$nulls":3},"Передача",null,"11","торф","тонны",null,"плата за подключение"]
["г. Москва",{"$nulls":4},"декабрь",{"$nulls":3},"Сбыт",null,"12","дрова","м3",null,"прочие средства"]
["г.Санкт-Петербург",{"$nulls":10},"13","опил","м3"]
["Еврейская автономная область",{"$nulls":8},"kind_of_activity_03",null,"14","отходы березовые","м3"]
["Забайкальский край",{"$nulls":8},"Комбинированная выработка",null,"15","отходы осиновые","м3"]
["Ивановская область",{"$nulls":8},"Некомбинированная выработка",null,"16","печное топливо","тонны"]
["Иркутская область",{"$nulls":8},"Смешанное производство",null,"17","пилеты","тонны"]
["Кабардино-Балкарская республика",{"$nulls":8},"Передача",null,"18","смола","тонны"]
["Калининградская область",{"$nulls":8},"Сбыт",null,"19","щепа","м3"]
["Калужская область",{"$nulls":8},"Производство (некомбинированная выработка)+сбыт",null,"20","горючий сланец","тонны"]
["Камчатский край",{"$nulls":8},"Передача+сбыт",null,null,"керосин","тонны"]
["Карачаево-Черкесская республика",{"$nulls":8},"Производство (комбинированная выработка)+сбыт",null,null,"кислородно-водородная смесь","тыс м3"]
["Кемеровская область",{"$nulls":8},"Производство (некомбинированная выработка)+передача",null,null,"электроэнергия (НН)","тыс кВт.ч"]
["Кировская область",{"$nulls":8},"Производство (комбинированная выработка)+передача",null,null,"электроэнергия (СН1)","тыс кВт.ч"]
["Костромская область",{"$nulls":8},"Производство (комбинированная выработка)+передача+сбыт",null,null,"электроэнергия (СН2)","тыс кВт.ч"]
["Краснодарский край",{"$nulls":8},"Производство (некомбинированная выработка)+передача+сбыт",null,null,"электроэнергия (ВН)","тыс кВт.ч"]
["Красноярский край",{"$nulls":8},"Смешанное производство+сбыт",null,null,"мощность","тыс кВт"]
["Курганская область",{"$nulls":8},"Смешанное производство+передача",null,null,"прочее"]
["Курская область",{"$nulls":8},"Смешанное производство+передача+сбыт"]
["Ленинградская область"]
["Липецкая область"]
["Магаданская область"]
["Московская область"]
["Мурманская область"]
["Ненецкий автономный округ"]
["Нижегородская область"]
["Новгородская область"]
["Новосибирская область"]
["Омская область","kind_of_activity_02"]
["Оренбургская область"]
["Орловская область"]
["Пензенская область"]
["Пермский край"]
["Приморский край"]
["Псковская область"]
["Республика Адыгея"]
["Республика Алтай"]
["Республика Башкортостан"]
["Республика Бурятия"]
["Республика Дагестан"]
["Республика Ингушетия"]
["Республика Калмыкия"]
["Республика Карелия"]
["Республика Коми"]
["Республика Марий Эл"]
["Республика Мордовия"]
["Республика Саха (Якутия)"]
["Республика Северная Осетия-Алания"]
["Республика Татарстан"]
["Республика Тыва"]
["Республика Хакасия"]
["Ростовская область"]
["Рязанская область"]
["Самарская область"]
["Саратовская область"]
["Сахалинская область"]
["Свердловская область"]
["Смоленская область"]
["Ставропольский край"]
["Тамбовская область"]
["Тверская область"]
["Томская область"]
["Тульская область"]
["Тюменская область"]
["Удмуртская республика"]
["Ульяновская область","kind_of_activity_02"]
["Хабаровский край"]
["Ханты-Мансийский автономный округ","kind_of_activity_02"]
["Челябинская область"]
["Чеченская республика"]
["Чувашская республика"]
["Чукотский автономный округ"]
["Ямало-Ненецкий автономный округ"]
["Ярославская область"]

{"sheet":"et_union_hor","index":15,"n_rows":61,"n_cols":16,"rows_kept":61,"hidden":true,"merged":[[3,3,4,3],[3,4,4,4],[15,0,17,0],[15,4,15,10],[23,0,24,0],[23,4,23,10],[33,0,37,0],[54,3,57,3],[54,4,57,4],[55,6,56,6],[55,7,56,7],[55,8,56,8]]}
[]
["et_List01","et_List01_1"]
[]
[{"$nulls":5},1]
[{"$nulls":6},"Добавить МО"]
[]
[]
["et_Comm"]
[]
[]
[]
[]
["et_List03"]
[]
[]
["4",null,null,{"$f":"A16","v":"4"}]
[{"$nulls":3},{"$f":"A16&\".1\"","v":"4.1"},"Сайт организации в сети Интернет",null,null,"x","x","x"]
[{"$nulls":3},{"$f":"A16&\".2\"","v":"4.2"},"Печатное издание",null,"",{"$nulls":3},"x"]
[]
[]
[]
["edit_List03_ipr_pub"]
[]
["3",null,null,{"$f":"A24","v":"3"},"Информация об инвестиционных программах регулируемой организации (п.21 Постановления Правительства Российской Федерации от 05 июля 2013 г. N 570 \"О стандартах раскрытия информации теплоснабжающими, теплосетевыми организациями и органами регулирования\")"]
[{"$nulls":3},{"$f":"A24&\".1\"","v":"3.1"},"Сайт организации в сети Интернет",null,null,"x","x","x"]
[]
[]
["et_List02_1"]
[]
[{"$nulls":5},"тыс руб"]
[]
["et_List02_2"]
[]
[{"$nulls":3},{"$f":"A34","v":0},null,"x",{"$f":"G35*G36+G37","v":{"v":0,"d":"0.00"}},"p"]
[{"$nulls":3},{"$f":"A34&\".1\"","v":".1"},"Объем"]
[{"$nulls":3},{"$f":"A34&\".2\"","v":".2"},"Стоимость за единицу объема","тыс руб"]
[{"$nulls":3},{"$f":"A34&\".3\"","v":".3"},"Стоимость доставки","тыс руб"]
[{"$nulls":3},{"$f":"A34&\".4\"","v":".4"},"Способ приобретения","x"]
[]
["et_List02_3"]
[]
[{"$nulls":5},"Гкал/ч"]
[]
["et_List02_4"]
[]
[{"$nulls":5},"кг усл. топл/Гкал"]
[]
["et_List02_5"]
[]
[{"$nulls":5},"тыс руб"]
[]
[]
["et_List04_1","et_List04_2","et_List04_3"]
[]
[{"$nulls":3},"1",{"$nulls":3},"Итого по поставщику",{"$nulls":6},{"$f":"SUM(O56:O58)","v":{"v":0,"d":"0.00"}},{"$f":"nerr(O55/List02_costs_OPS)*100","v":{"v":0,"d":"0.00"}}]
[{"$nulls":6},"1",{"$nulls":3},"1"]
[{"$nulls":11},"Добавить товар/услугу"]
[{"$nulls":7},"Добавить способ"]
[]
[]
["et_List07_1"]

{"sheet":"et_union_vert","index":16,"n_rows":0,"n_cols":0,"rows_kept":0,"hidden":true}

{"sheet":"modInfo","index":17,"n_rows":17,"n_cols":2,"rows_kept":17,"hidden":true}
[null,"Титульный"]
[null,"Для выбора того или иного источника публикации выполните двойной щелчок по синей ячейке напротив соответствующего источника.\nВНИМАНИЕ! Если Вы снимаете галочку с пункта, то будут скрыты и очищены соответствующие строки на листе \"Ссылки на публикации\"!\n\nОпубликование перечисленных в шаблоне показателей на сайте организации в сети Интернет и в печатных изданиях не обязательно, если данный шаблон предоставлен по системе ЕИАС (региональный сегмент)."]
[null,"Обязательное опубликование на официальном сайте органа исполнительной власти субъекта Российской Федерации в области государственного регулирования цен (тарифов), и (или) на официальном сайте органа местного самоуправления поселения или городского округа в случае их наделения в соответствии с законом субъекта Российской Федерации полномочиями по государственному регулированию цен (тарифов) предусмотрено пунктом 3 (а) постановления Правительства N 570 от 05.07.2013"]
[null,"Задайте период регулирования, выбрав даты начала и окончания очередного периода регулирования из календаря (иконка справа от указанной ячейки), либо введите дату непосредственно в ячейку в формате - 'ДД.ММ.ГГГГ'"]
[null,"Шаблон заполняется раздельно по каждому виду тарифа"]
[null,"В зависимости от указанного вида деятельности будут доступны для заполнения поля 'Производство', 'Передача' и 'Сбыт'"]
[null,"Ссылки на публикации"]
[null,"Вводите адрес сайта, не нарушая цвет ячейки /если копируете гиперссылку из браузера, то выполните двойной щелчок по ячейке и только после этого можете вставить скопированный элемент/"]
[null,"Материалы (документы) необходимо загружать с помощью \"ЕИАС Мониторинг\". Ссылка на инструкцию по загрузке материалов (документов) расположена на листе 'Инструкция' в п.'Методология заполнения'.\n\nВвводите ссылку, не нарушая цвет ячейки /если копируете гиперссылку из браузера, то выполните двойной щелчок по ячейке и только после этого можете вставить скопированный элемент/."]
[null,"Если для какого-либо пункта графы 'Наименование источника (сайта или печатного издания)' информация не раскрывалась, то в соответствующем поле укажите - 'не раскрывалась'"]
[null,"Список МО"]
[null,"В случае, если тариф не дифференцируется по системам теплоснабжения, перечислите все муниципальные районы, в которых организация осуществляет услуги по передаче тепловой энергии"]
[null,"В случае, если тариф не дифференцируется по системам теплоснабжения, перечислите все муниципальные образования, в которых организация осуществляет услуги по передаче тепловой энергии"]
[null,"Признак дифференциации тарифа"]
[null,"В случае, если тариф не дифференцируется по системам теплоснабжения, укажите '1'. Введите значение от 1 до 100, чтобы указать очередной условный порядковый номер системы теплоснабжения"]
[null,"Потр. Характеристики"]
[null,"Документы необходимо загружать с помощью \"ЕИАС Мониторинг\". Ссылка на инструкцию по загрузке документов расположена на листе 'Инструкция' в п.'Методология заполнения'.\n\nВвводите ссылку, не нарушая цвет ячейки /если копируете гиперссылку из браузера, то выполните двойной щелчок по ячейке и только после этого можете вставить скопированный элемент/."]

{"sheet":"modRegion","index":18,"n_rows":0,"n_cols":0,"rows_kept":0,"hidden":true}

{"sheet":"modReestr","index":19,"n_rows":0,"n_cols":0,"rows_kept":0,"hidden":true}

{"sheet":"modfrmSelectData","index":20,"n_rows":0,"n_cols":0,"rows_kept":0,"hidden":true}

{"sheet":"modfrmReestr","index":21,"n_rows":0,"n_cols":0,"rows_kept":0,"hidden":true}

{"sheet":"modUpdTemplMain","index":22,"n_rows":0,"n_cols":0,"rows_kept":0,"hidden":true}

{"sheet":"REESTR_ORG","index":23,"n_rows":214,"n_cols":12,"rows_kept":214,"hidden":true}
["№","NSRF","MR_NAME","OKTMO_MR_NAME","MO_NAME","OKTMO_NAME","RST_ORG_ID","ORG_NAME","INN_NAME","KPP_NAME","VDET_NAME"]
[1,"Республика Хакасия","Алтайский","95605000","Аршановское","95605405","26354663","МУП \"Тепло\" с.Аршаново","1904004931","190401001","производство (некомбинированная выработка)+передача+сбыт","WARM"]
[2,"Республика Хакасия","Алтайский","95605000","Белоярское","95605410","30373066","МУП \"ПРОГРЕСС\"","1901125790","190101001","Теплоноситель - Сбыт :: Производство :: Передача","WARM"]
[3,"Республика Хакасия","Алтайский","95605000","Белоярское","95605410","30373066","МУП \"ПРОГРЕСС\"","1901125790","190101001","производство (некомбинированная выработка)+передача+сбыт","WARM"]
[4,"Республика Хакасия","Алтайский","95605000","Белоярское","95605410","26354666","ОАО \"Белоярский тепловодоканал\"","1901098096","190101001","производство (некомбинированная выработка)+передача+сбыт","WARM"]
[5,"Республика Хакасия","Алтайский","95605000","Белоярское","95605410","27882031","ООО \"Алтай ЭнергоРесурс\"","1904005131","190401001","производство (некомбинированная выработка)+передача+сбыт","WARM"]
[6,"Республика Хакасия","Алтайский","95605000","Белоярское","95605410","28453986","ООО \"Теплоэнрегия\"","1901115263","190101001","производство (некомбинированная выработка)+передача+сбыт","WARM"]
[7,"Республика Хакасия","Алтайский","95605000","Белоярское","95605410","28870819","ООО \"УЖКС\"","1901120619","190101001","производство (некомбинированная выработка)+передача+сбыт","WARM"]
[8,"Республика Хакасия","Алтайский","95605000","Белоярское","95605410","26354635","ФГБУ \"Енисейрыбвод\"","2466053121","246601001","производство (некомбинированная выработка)+передача+сбыт","WARM"]
[9,"Республика Хакасия","Алтайский","95605000","Изыхское","95605418","28012374","МУП МО Изыхский сельсовет \"Изыхское\"","1901109439","190101001","производство (некомбинированная выработка)+передача","WARM"]
[10,"Республика Хакасия","Алтайский","95605000","Изыхское","95605418","29648727","ООО \"Агро Лидер\"","1901114968","190101001","производство (некомбинированная выработка)+передача+сбыт","WARM"]
[11,"Республика Хакасия","Алтайский","95605000","Кировское","95605420","28453858","МУП \"Импульс\"","1901114580","190101001","производство (некомбинированная выработка)+передача+сбыт","WARM"]
[12,"Республика Хакасия","Алтайский","95605000","Новороссийское","95605435","28036615","МУП \"Надежда\"","1901109485","190101001","производство (некомбинированная выработка)+передача+сбыт","WARM"]
[13,"Республика Хакасия","Алтайский","95605000","Новороссийское","95605435","26354664","МУП \"Новороссийское\"","1904004949","190401001","производство (некомбинированная выработка)+передача+сбыт","WARM"]
[14,"Республика Хакасия","Алтайский","95605000","Очурское","95605440","26354662","МУП \"Енисей\" с.Очуры","1904004924","190401001","производство (некомбинированная выработка)+передача+сбыт","WARM"]
[15,"Республика Хакасия","Алтайский","95605000","Очурское","95605440","30373107","МУП ЖКХ \"Очуры\"","1901126890","190101001","Теплоноситель - Сбыт :: Производство :: Передача","WARM"]
[16,"Республика Хакасия","Алтайский","95605000","Очурское","95605440","30373107","МУП ЖКХ \"Очуры\"","1901126890","190101001","производство (некомбинированная выработка)+передача+сбыт","WARM"]
[17,"Республика Хакасия","Алтайский","95605000","Подсинское","95605445","26522906","ГУП \"Хакресводоканал\"","1901001202","191001001","производство (некомбинированная выработка)+передача+сбыт","WARM"]
[18,"Республика Хакасия","Алтайский","95605000","Подсинское","95605445","30394679","МУП \"Подсинее\"","1901121570","190101001","производство (некомбинированная выработка)+сбыт","WARM"]
[19,"Республика Хакасия","Алтайский","95605000","Подсинское","95605445","26354660","МУП ЖКХ с.Подсинее","1904003198","190401001","Передача","WARM"]
[20,"Республика Хакасия","Алтайский","95605000","Подсинское","95605445","26355163","ООО  \"Сибирская губерния\"","1904005364","190401001","производство (некомбинированная выработка)","WARM"]
[21,"Республика Хакасия","Аскизский","95608000","Аскизское","95608405","26824651","Красноярская дирекция по тепловодоснабжению","7708503727","246645014","производство (некомбинированная выработка)+передача+сбыт","WARM"]
[22,"Республика Хакасия","Аскизский","95608000","Аскизское","95608405","26354669","ООО \"Аскизсервис\"","1905009450","190501001","производство (некомбинированная выработка)+передача+сбыт","WARM"]
[23,"Республика Хакасия","Аскизский","95608000","Аскизское","95608405","28873522","ООО \"Аскизтеплосервис\"","1905011748","190501001","производство (некомбинированная выработка)+передача+сбыт","WARM"]
[24,"Республика Хакасия","Аскизский","95608000","Базинское","95608410","26824651","Красноярская дирекция по тепловодоснабжению","7708503727","246645014","производство (некомбинированная выработка)+передача+сбыт","WARM"]
[25,"Республика Хакасия","Аскизский","95608000","Балыксинское","95608409","26824651","Красноярская дирекция по тепловодоснабжению","7708503727","246645014","производство (некомбинированная выработка)+передача+сбыт","WARM"]
[26,"Республика Хакасия","Аскизский","95608000","Бельтирское","95608412","26824651","Красноярская дирекция по тепловодоснабжению","7708503727","246645014","производство (некомбинированная выработка)+передача+сбыт","WARM"]
[27,"Республика Хакасия","Аскизский","95608000","Бельтирское","95608412","30866380","МУП \"Бельтирская ТСК\"","1905012597","190501001","производство (некомбинированная выработка)+передача+сбыт","WARM"]
[28,"Республика Хакасия","Аскизский","95608000","Бельтирское","95608412","26983643","МУП \"Бельтирское ЖКХ\"","1905010342","190501001","производство (некомбинированная выработка)+передача+сбыт","WARM"]
[29,"Республика Хакасия","Аскизский","95608000","Бирикчульское","95608413","26824651","Красноярская дирекция по тепловодоснабжению","7708503727","246645014","производство (некомбинированная выработка)+передача+сбыт","WARM"]
[30,"Республика Хакасия","Аскизский","95608000","Верх-Аскизское","95608415","26824651","Красноярская дирекция по тепловодоснабжению","7708503727","246645014","производство (некомбинированная выработка)+передача+сбыт","WARM"]
[31,"Республика Хакасия","Аскизский","95608000","Есинское","95608420","26824651","Красноярская дирекция по тепловодоснабжению","7708503727","246645014","производство (некомбинированная выработка)+передача+сбыт","WARM"]
[32,"Республика Хакасия","Аскизский","95608000","Кызласское","95608430","26824651","Красноярская дирекция по тепловодоснабжению","7708503727","246645014","производство (некомбинированная выработка)+передача+сбыт","WARM"]
[33,"Республика Хакасия","Аскизский","95608000","Кызласское","95608430","26444618","ООО \"Чазой\" с.Кызлас","1905009756","190501001","производство (некомбинированная выработка)+передача+сбыт","WARM"]
[34,"Республика Хакасия","Аскизский","95608000","Поселок Аскиз","95608151","26824651","Красноярская дирекция по тепловодоснабжению","7708503727","246645014","производство (некомбинированная выработка)+передача+сбыт","WARM"]
[35,"Республика Хакасия","Аскизский","95608000","Поселок Аскиз","95608151","27201122","МУП МО Аскизский поссовет \"Аскизские тепловые сети\"","1905010720","190501001","производство (некомбинированная выработка)+передача+сбыт","WARM"]
[36,"Республика Хакасия","Аскизский","95608000","Поселок Бискамжа","95608165","26824651","Красноярская дирекция по тепловодоснабжению","7708503727","246645014","производство (некомбинированная выработка)+передача+сбыт","WARM"]
[37,"Республика Хакасия","Аскизский","95608000","Поселок Бискамжа","95608165","27566866","МУП  МО Бискамжинский поссовет \"Жилсервис\"","1905010991","190501001","производство (некомбинированная выработка)+передача+сбыт","WARM"]
[38,"Республика Хакасия","Аскизский","95608000","Поселок Вершина Теи","95608169","26824651","Красноярская дирекция по тепловодоснабжению","7708503727","246645014","производство (некомбинированная выработка)+передача+сбыт","WARM"]
[39,"Республика Хакасия","Аскизский","95608000","Поселок Вершина Теи","95608169","30862516","МУП \"ТКС\"","1905012565","190501001","Теплоноситель - Сбыт :: Производство :: Передача","WARM"]
[40,"Республика Хакасия","Аскизский","95608000","Поселок Вершина Теи","95608169","30862516","МУП \"ТКС\"","1905012565","190501001","производство (некомбинированная выработка)+передача+сбыт","WARM"]
[41,"Республика Хакасия","Аскизский","95608000","Поселок Вершина Теи","95608169","30414471","МУП \"Управляющая компания\"","1905012244","190501001","Теплоноситель - Сбыт :: Производство :: Передача","WARM"]
[42,"Республика Хакасия","Аскизский","95608000","Поселок Вершина Теи","95608169","30414471","МУП \"Управляющая компания\"","1905012244","190501001","производство (некомбинированная выработка)+передача+сбыт","WARM"]
[43,"Республика Хакасия","Аскизский","95608000","Поселок Вершина Теи","95608169","26354667","ООО \"Тейские энергосети\"","1905008664","190501001","производство (некомбинированная выработка)+передача+сбыт","WARM"]
[44,"Республика Хакасия","Аскизский","95608000","Поселок Вершина Теи","95608169","28876026","ООО \"УК ВСТМ г. Абаза\"","1909001557","190901001","производство (некомбинированная выработка)+передача+сбыт","WARM"]
[45,"Республика Хакасия","Аскизский","95608000","Пуланкольское","95608440","26824651","Красноярская дирекция по тепловодоснабжению","7708503727","246645014","производство (некомбинированная выработка)+передача+сбыт","WARM"]
[46,"Республика Хакасия","Аскизский","95608000","Пуланкольское","95608440","28799585","ООО \"ХакасГрадСтрой\"","1905011875","190501001","производство (некомбинированная выработка)+передача+сбыт","WARM"]
[47,"Республика Хакасия","Аскизский","95608000","Усть-Камыштинское","95608450","26824651","Красноярская дирекция по тепловодоснабжению","7708503727","246645014","производство (некомбинированная выработка)+передача+сбыт","WARM"]
[48,"Республика Хакасия","Аскизский","95608000","Усть-Камыштинское","95608450","28799585","ООО \"ХакасГрадСтрой\"","1905011875","190501001","производство (некомбинированная выработка)+передача+сбыт","WARM"]
[49,"Республика Хакасия","Аскизский","95608000","Усть-Чульское","95608455","26824651","Красноярская дирекция по тепловодоснабжению","7708503727","246645014","производство (некомбинированная выработка)+передача+сбыт","WARM"]
[50,"Республика Хакасия","Аскизский","95608000","Усть-Чульское","95608455","28799585","ООО \"ХакасГрадСтрой\"","1905011875","190501001","производство (некомбинированная выработка)+передача+сбыт","WARM"]
[51,"Республика Хакасия","Бейский","95612000","Бейское","95612405","26354647","ГОУ НПО ПУ №15 с.Бея","1902064678","190201001","производство (некомбинированная выработка)+передача+сбыт","WARM"]
[52,"Республика Хакасия","Бейский","95612000","Бейское","95612405","26441289","МУП \"Теплосеть\" с.Бея","1902024932","190201001","производство (некомбинированная выработка)+передача+сбыт","WARM"]
[53,"Республика Хакасия","Бейский","95612000","Бейское","95612405","28873531","ООО \"Теплоресурс\"","1906004581","190601001","производство (некомбинированная выработка)+передача+сбыт","WARM"]
[54,"Республика Хакасия","Бейский","95612000","Кирбинское","95612425","26442225","МУП ЖКХ \"Железнодорожник\"","1902024266","190201001","производство (некомбинированная выработка)+передача+сбыт","WARM"]
[55,"Республика Хакасия","Бейский","95612000","Новоенисейское","95612440","28453999","МУП \"Новоенисейские теплосети\"","1906004422","190601001","производство (некомбинированная выработка)+передача+сбыт","WARM"]
[56,"Республика Хакасия","Бейский","95612000","Новоенисейское","95612440","30355688","МУП \"Теплоресурс\" с. Новоенисейка","1906004648","190601001","производство (некомбинированная выработка)+передача","WARM"]
[57,"Республика Хакасия","Бейский","95612000","Новоенисейское","95612440","30355688","МУП \"Теплоресурс\" с. Новоенисейка","1906004648","190601001","производство (некомбинированная выработка)+передача+сбыт","WARM"]
[58,"Республика Хакасия","Бейский","95612000","Новоенисейское","95612440","26354671","МУП ЖКХ с.Новоенисейка","1906005539","190601001","производство (некомбинированная выработка)+передача+сбыт","WARM"]
[59,"Республика Хакасия","Боградский","95615000","Боградское","95615410","26522906","ГУП \"Хакресводоканал\"","1901001202","191001001","производство (некомбинированная выработка)+передача+сбыт","WARM"]
[60,"Республика Хакасия","Боградский","95615000","Боградское","95615410","26824651","Красноярская дирекция по тепловодоснабжению","7708503727","246645014","производство (некомбинированная выработка)+передача+сбыт","WARM"]
[61,"Республика Хакасия","Боградский","95615000","Боградское","95615410","26370737","МУП \"Боградский \"Коммунальник\" (с.Боград, с.Сон)","1907001008","190701001","производство (некомбинированная выработка)+передача+сбыт","WARM"]
[62,"Республика Хакасия","Боградский","95615000","Боградское","95615410","28873027","ООО \"Водоканал Боградского района\"","1907004094","190701001","производство (некомбинированная выработка)+передача+сбыт","WARM"]
[63,"Республика Хакасия","Боградский","95615000","Боградское","95615410","28422399","ООО \"Хакасресводоканал Боградского района\"","1907004062","190701001","производство (некомбинированная выработка)+передача+сбыт","WARM"]
[64,"Республика Хакасия","Боградский","95615000","Бородинское","95615420","26522906","ГУП \"Хакресводоканал\"","1901001202","191001001","производство (некомбинированная выработка)+передача+сбыт","WARM"]
[65,"Республика Хакасия","Боградский","95615000","Бородинское","95615420","26824651","Красноярская дирекция по тепловодоснабжению","7708503727","246645014","производство (некомбинированная выработка)+передача+сбыт","WARM"]
[66,"Республика Хакасия","Боградский","95615000","Бородинское","95615420","28873027","ООО \"Водоканал Боградского района\"","1907004094","190701001","производство (некомбинированная выработка)+передача+сбыт","WARM"]
[67,"Республика Хакасия","Боградский","95615000","Бородинское","95615420","28494698","ООО \"Территория\"","2459017901","245901001","производство (некомбинированная выработка)+передача+сбыт","WARM"]
[68,"Республика Хакасия","Боградский","95615000","Бородинское","95615420","28422399","ООО \"Хакасресводоканал Боградского района\"","1907004062","190701001","производство (некомбинированная выработка)+передача+сбыт","WARM"]
[69,"Республика Хакасия","Боградский","95615000","Знаменское","95615430","28494698","ООО \"Территория\"","2459017901","245901001","производство (некомбинированная выработка)+передача+сбыт","WARM"]
[70,"Республика Хакасия","Боградский","95615000","Первомайское","95615440","28494698","ООО \"Территория\"","2459017901","245901001","производство (некомбинированная выработка)+передача+сбыт","WARM"]
[71,"Республика Хакасия","Боградский","95615000","Пушновское","95615445","28873086","МБУ ЖКХ и БО \"Пушновское\"","1907004136","190701001","производство (некомбинированная выработка)+передача+сбыт","WARM"]
[72,"Республика Хакасия","Боградский","95615000","Сарагашское","95615450","28048657","МБУ ЖКХ БО \"Сарагашское\"","1907002925","190701001","производство (некомбинированная выработка)+передача+сбыт","WARM"]
[73,"Республика Хакасия","Боградский","95615000","Сонское","95615460","26522906","ГУП \"Хакресводоканал\"","1901001202","191001001","производство (некомбинированная выработка)+передача+сбыт","WARM"]
[74,"Республика Хакасия","Боградский","95615000","Сонское","95615460","26824651","Красноярская дирекция по тепловодоснабжению","7708503727","246645014","производство (некомбинированная выработка)+передача+сбыт","WARM"]
[75,"Республика Хакасия","Боградский","95615000","Сонское","95615460","28873027","ООО \"Водоканал Боградского района\"","1907004094","190701001","производство (некомбинированная выработка)+передача+сбыт","WARM"]
[76,"Республика Хакасия","Боградский","95615000","Сонское","95615460","28422399","ООО \"Хакасресводоканал Боградского района\"","1907004062","190701001","производство (некомбинированная выработка)+передача+сбыт","WARM"]
[77,"Республика Хакасия","Орджоникидзевский","95620000","Копьёвский поссовет","95620403","26523591","ГУП РХ \"Орджоникидзевское ДРСУ\"","1908000166","190801001","производство (некомбинированная выработка)+передача+сбыт","WARM"]
[78,"Республика Хакасия","Орджоникидзевский","95620000","Копьёвский поссовет","95620403","26824651","Красноярская дирекция по тепловодоснабжению","7708503727","246645014","производство (некомбинированная выработка)+передача+сбыт","WARM"]
[79,"Республика Хакасия","Орджоникидзевский","95620000","Копьёвский поссовет","95620403","26354673","МУП \"Копьевское ЖКХ\"","1908003015","190801001","производство (некомбинированная выработка)+передача+сбыт","WARM"]
[80,"Республика Хакасия","Орджоникидзевский","95620000","Копьёвский сельсовет","95620420","26824651","Красноярская дирекция по тепловодоснабжению","7708503727","246645014","производство (некомбинированная выработка)+передача+сбыт","WARM"]
[81,"Республика Хакасия","Орджоникидзевский","95620000","Красноиюсское","95620425","26824651","Красноярская дирекция по тепловодоснабжению","7708503727","246645014","производство (некомбинированная выработка)+передача+сбыт","WARM"]
[82,"Республика Хакасия","Орджоникидзевский","95620000","Красноиюсское","95620425","26354676","МКП\"Красноиюсское ЖКХ\"","1908003390","190801001","производство (некомбинированная выработка)+передача+сбыт","WARM"]
[83,"Республика Хакасия","Орджоникидзевский","95620000","Новомарьясовское","95620430","26824651","Красноярская дирекция по тепловодоснабжению","7708503727","246645014","производство (некомбинированная выработка)+передача+сбыт","WARM"]
[84,"Республика Хакасия","Орджоникидзевский","95620000","Приисковое","95620437","26824651","Красноярская дирекция по тепловодоснабжению","7708503727","246645014","производство (некомбинированная выработка)+передача+сбыт","WARM"]
[85,"Республика Хакасия","Орджоникидзевский","95620000","Приисковое","95620437","26354674","МКП \"Приисковое ЖКХ\"","1908003135","190801001","производство (некомбинированная выработка)+передача+сбыт","WARM"]
[86,"Республика Хакасия","Орджоникидзевский","95620000","Устинкинское","95620450","26824651","Красноярская дирекция по тепловодоснабжению","7708503727","246645014","производство (некомбинированная выработка)+передача+сбыт","WARM"]
[87,"Республика Хакасия","Орджоникидзевский","95620000","Устинкинское","95620450","26354675","МКП \"Устинкинское ЖКХ\"","1908003382","190801001","производство (некомбинированная выработка)+передача+сбыт","WARM"]
[88,"Республика Хакасия","Орджоникидзевский","95620000","с. Орджоникидзевское","95620435","26824651","Красноярская дирекция по тепловодоснабжению","7708503727","246645014","производство (некомбинированная выработка)+передача+сбыт","WARM"]
[89,"Республика Хакасия","Орджоникидзевский","95620000","с. Орджоникидзевское","95620435","27568130","МКП \"Орджоникидзевское ЖКХ\"","1908003600","190801001","производство (некомбинированная выработка)+передача+сбыт","WARM"]
[90,"Республика Хакасия","Таштыпский","95625000","Таштыпское","95625440","26354678","ГБОУ НПО ПУ-16 с.Таштып","1909010142","190901001","производство (некомбинированная выработка)+передача+сбыт","WARM"]
[91,"Республика Хакасия","Таштыпский","95625000","Таштыпское","95625440","26824651","Красноярская дирекция по тепловодоснабжению","7708503727","246645014","производство (некомбинированная выработка)+передача+сбыт","WARM"]
[92,"Республика Хакасия","Таштыпский","95625000","Таштыпское","95625440","26354677","МУП \"ТЖКХ\"","1909000391","190901001","производство (некомбинированная выработка)+передача+сбыт","WARM"]
[93,"Республика Хакасия","Таштыпский","95625000","Таштыпское","95625440","28460574","ООО \"Тасхыл\"","1909001677","190901001","производство (некомбинированная выработка)","WARM"]
[94,"Республика Хакасия","Таштыпский","95625000","Таштыпское","95625440","30801922","ООО \"Таштыпэнерго\"","1902026753","190201001","производство (некомбинированная выработка)+передача+сбыт","WARM"]
[95,"Республика Хакасия","Усть-Абаканский","95630000","Вершино-Биджинское","95630405","26824651","Красноярская дирекция по тепловодоснабжению","7708503727","246645014","производство (некомбинированная выработка)+передача+сбыт","WARM"]
[96,"Республика Хакасия","Усть-Абаканский","95630000","Вершино-Биджинское","95630405","26354698","МБУ ЖКХ \"Вершина\"","1910011006","191001001","производство (некомбинированная выработка)+передача+сбыт","WARM"]
[97,"Республика Хакасия","Усть-Абаканский","95630000","Доможаковское","95630415","26824651","Красноярская дирекция по тепловодоснабжению","7708503727","246645014","производство (некомбинированная выработка)+передача+сбыт","WARM"]
[98,"Республика Хакасия","Усть-Абаканский","95630000","Доможаковское","95630415","26354686","МБУ ЖКХ \"ТЭМП\"","1910011060","191001001","производство (некомбинированная выработка)+передача+сбыт","WARM"]
[99,"Республика Хакасия","Усть-Абаканский","95630000","Московское","95630430","26824651","Красноярская дирекция по тепловодоснабжению","7708503727","246645014","производство (некомбинированная выработка)+передача+сбыт","WARM"]
[100,"Республика Хакасия","Усть-Абаканский","95630000","Опытненское","95630435","26824651","Красноярская дирекция по тепловодоснабжению","7708503727","246645014","производство (некомбинированная выработка)+передача+сбыт","WARM"]
[101,"Республика Хакасия","Усть-Абаканский","95630000","Опытненское","95630435","28012491","ООО \"Прогресс-Сервис\"","1910010891","191001001","производство (некомбинированная выработка)+передача+сбыт","WARM"]
[102,"Республика Хакасия","Усть-Абаканский","95630000","Поселок Усть-Абакан","95630151","26522906","ГУП \"Хакресводоканал\"","1901001202","191001001","производство (некомбинированная выработка)+передача+сбыт","WARM"]
[103,"Республика Хакасия","Усть-Абаканский","95630000","Поселок Усть-Абакан","95630151","26824651","Красноярская дирекция по тепловодоснабжению","7708503727","246645014","производство (некомбинированная выработка)+передача+сбыт","WARM"]
[104,"Республика Хакасия","Усть-Абаканский","95630000","Поселок Усть-Абакан","95630151","28012491","ООО \"Прогресс-Сервис\"","1910010891","191001001","производство (некомбинированная выработка)+передача+сбыт","WARM"]
[105,"Республика Хакасия","Усть-Абаканский","95630000","Поселок Усть-Абакан","95630151","26354684","ООО \"ТВК Усть-Абакан\"","1910012384","191001001","производство (некомбинированная выработка)+передача+сбыт","WARM"]
[106,"Республика Хакасия","Усть-Абаканский","95630000","Поселок Усть-Абакан","95630151","26354680","ФКУ Абаканская воспитательная колония УФСИН России по РХ","1910000043","191001001","производство (некомбинированная выработка)+передача+сбыт","WARM"]
[107,"Республика Хакасия","Усть-Абаканский","95630000","Райковское","95630440","26824651","Красноярская дирекция по тепловодоснабжению","7708503727","246645014","производство (некомбинированная выработка)+передача+сбыт","WARM"]
[108,"Республика Хакасия","Усть-Абаканский","95630000","Расцветовское","95630445","26824651","Красноярская дирекция по тепловодоснабжению","7708503727","246645014","производство (некомбинированная выработка)+передача+сбыт","WARM"]
[109,"Республика Хакасия","Усть-Абаканский","95630000","Расцветовское","95630445","28873506","ООО \"ТеплоТранс\"","1910013155","191001001","производство (некомбинированная выработка)+передача+сбыт","WARM"]
[110,"Республика Хакасия","Усть-Абаканский","95630000","Расцветовское","95630445","28464053","ООО \"Термолайн\"","1910012810","191001001","производство (некомбинированная выработка)+передача+сбыт","WARM"]
[111,"Республика Хакасия","Усть-Абаканский","95630000","Расцветовское","95630445","30401233","ООО \"УК Хорс\"","2465132282","246501001","Теплоноситель - Сбыт :: Производство :: Передача","WARM"]
[112,"Республика Хакасия","Усть-Абаканский","95630000","Расцветовское","95630445","30401233","ООО \"УК Хорс\"","2465132282","246501001","производство (некомбинированная выработка)+передача+сбыт","WARM"]
[113,"Республика Хакасия","Усть-Абаканский","95630000","Солнечное","95630460","26824651","Красноярская дирекция по тепловодоснабжению","7708503727","246645014","производство (некомбинированная выработка)+передача+сбыт","WARM"]
[114,"Республика Хакасия","Усть-Абаканский","95630000","Солнечное","95630460","26581857","МБУ \"Теплоснаб\"","1910011743","191001001","производство (некомбинированная выработка)+передача+сбыт","WARM"]
[115,"Республика Хакасия","Усть-Абаканский","95630000","Усть-Бюрское","95630465","26824651","Красноярская дирекция по тепловодоснабжению","7708503727","246645014","производство (некомбинированная выработка)+передача+сбыт","WARM"]
[116,"Республика Хакасия","Усть-Абаканский","95630000","Чарковское","95630470","26824651","Красноярская дирекция по тепловодоснабжению","7708503727","246645014","производство (некомбинированная выработка)+передача+сбыт","WARM"]
[117,"Республика Хакасия","Усть-Абаканский","95630000","Чарковское","95630470","26354685","МБУ ЖКХ \"Чарки\"","1910011052","191001001","производство (некомбинированная выработка)+передача+сбыт","WARM"]
[118,"Республика Хакасия","Ширинский","95635000","Борцовское","95635410","26824651","Красноярская дирекция по тепловодоснабжению","7708503727","246645014","производство (некомбинированная выработка)+передача+сбыт","WARM"]
[119,"Республика Хакасия","Ширинский","95635000","Борцовское","95635410","26354694","ООО \"Коммунальное хозяйство \"Борец\"","1911008084","191101001","производство (некомбинированная выработка)+передача+сбыт","WARM"]
[120,"Республика Хакасия","Ширинский","95635000","Борцовское","95635410","30388793","ООО \"ТВР\"","1911008729","191101001","Теплоноситель - Сбыт","WARM"]
[121,"Республика Хакасия","Ширинский","95635000","Борцовское","95635410","30388793","ООО \"ТВР\"","1911008729","191101001","производство (некомбинированная выработка)","WARM"]
[122,"Республика Хакасия","Ширинский","95635000","Борцовское","95635410","30388793","ООО \"ТВР\"","1911008729","191101001","производство (некомбинированная выработка)+передача+сбыт","WARM"]
[123,"Республика Хакасия","Ширинский","95635000","Борцовское","95635410","30864933","ООО \"ТеплоСети\"","1903025544","190301001","Теплоноситель - Сбыт :: Производство :: Передача","WARM"]
[124,"Республика Хакасия","Ширинский","95635000","Борцовское","95635410","30864933","ООО \"ТеплоСети\"","1903025544","190301001","производство (некомбинированная выработка)+передача+сбыт","WARM"]
[125,"Республика Хакасия","Ширинский","95635000","Борцовское","95635410","28872996","ООО \"Хакресводоканал Ширинского района\"","1911008542","191101001","производство (некомбинированная выработка)+передача+сбыт","WARM"]
[126,"Республика Хакасия","Ширинский","95635000","Жемчужненский сельсовет","95635430","28870673","ООО \"Фирма \"Ригор\"","2466095756","246601001","Теплоноситель - Сбыт :: Производство :: Передача","WARM"]
[127,"Республика Хакасия","Ширинский","95635000","Жемчужненский сельсовет","95635430","28870673","ООО \"Фирма \"Ригор\"","2466095756","246601001","производство (некомбинированная выработка)+передача+сбыт","WARM"]
[128,"Республика Хакасия","Ширинский","95635000","Коммунаровский сельсовет","95635401","26522906","ГУП \"Хакресводоканал\"","1901001202","191001001","производство (некомбинированная выработка)+передача+сбыт","WARM"]
[129,"Республика Хакасия","Ширинский","95635000","Коммунаровский сельсовет","95635401","26824651","Красноярская дирекция по тепловодоснабжению","7708503727","246645014","производство (некомбинированная выработка)+передача+сбыт","WARM"]
[130,"Республика Хакасия","Ширинский","95635000","Коммунаровский сельсовет","95635401","26354688","ОАО \"Коммунаровский рудник\"","1911000014","191101001","производство (некомбинированная выработка)+передача+сбыт","WARM"]
[131,"Республика Хакасия","Ширинский","95635000","Коммунаровский сельсовет","95635401","30388793","ООО \"ТВР\"","1911008729","191101001","Теплоноситель - Производство","WARM"]
[132,"Республика Хакасия","Ширинский","95635000","Коммунаровский сельсовет","95635401","30388793","ООО \"ТВР\"","1911008729","191101001","Теплоноситель - Сбыт :: Производство","WARM"]
[133,"Республика Хакасия","Ширинский","95635000","Коммунаровский сельсовет","95635401","30388793","ООО \"ТВР\"","1911008729","191101001","производство (некомбинированная выработка)","WARM"]
[134,"Республика Хакасия","Ширинский","95635000","Коммунаровский сельсовет","95635401","30388793","ООО \"ТВР\"","1911008729","191101001","производство (некомбинированная выработка)+передача+сбыт","WARM"]
[135,"Республика Хакасия","Ширинский","95635000","Коммунаровский сельсовет","95635401","30864933","ООО \"ТеплоСети\"","1903025544","190301001","Теплоноситель - Сбыт :: Производство :: Передача","WARM"]
[136,"Республика Хакасия","Ширинский","95635000","Коммунаровский сельсовет","95635401","30864933","ООО \"ТеплоСети\"","1903025544","190301001","производство (некомбинированная выработка)+передача+сбыт","WARM"]
[137,"Республика Хакасия","Ширинский","95635000","Коммунаровский сельсовет","95635401","28422385","ООО \"Хакасресводоканал Ширинского района\"","1911008422","191101001","производство (некомбинированная выработка)+передача+сбыт","WARM"]
[138,"Республика Хакасия","Ширинский","95635000","Коммунаровский сельсовет","95635401","28872996","ООО \"Хакресводоканал Ширинского района\"","1911008542","191101001","производство (некомбинированная выработка)+передача+сбыт","WARM"]
[139,"Республика Хакасия","Ширинский","95635000","Поселок Жемчужный","95635155","26522906","ГУП \"Хакресводоканал\"","1901001202","191001001","производство (некомбинированная выработка)+передача+сбыт","WARM"]
[140,"Республика Хакасия","Ширинский","95635000","Поселок Жемчужный","95635155","26824651","Красноярская дирекция по тепловодоснабжению","7708503727","246645014","производство (некомбинированная выработка)+передача+сбыт","WARM"]
[141,"Республика Хакасия","Ширинский","95635000","Поселок Жемчужный","95635155","26354690","МЗ ФГУ \"Детский санаторий \"Озеро Шира\"","1911000656","191101001","производство (некомбинированная выработка)+передача+сбыт","WARM"]
[142,"Республика Хакасия","Ширинский","95635000","Поселок Жемчужный","95635155","26354695","ООО \"Коммунальное хозяйство \"Жемчужное\"","1911007884","191101001","производство (некомбинированная выработка)+передача+сбыт","WARM"]
[143,"Республика Хакасия","Ширинский","95635000","Поселок Жемчужный","95635155","28870673","ООО \"Фирма \"Ригор\"","2466095756","246601001","производство (некомбинированная выработка)+передача+сбыт","WARM"]
[144,"Республика Хакасия","Ширинский","95635000","Поселок Жемчужный","95635155","28422385","ООО \"Хакасресводоканал Ширинского района\"","1911008422","191101001","производство (некомбинированная выработка)+передача+сбыт","WARM"]
[145,"Республика Хакасия","Ширинский","95635000","Соленоозерное","95635438","26824651","Красноярская дирекция по тепловодоснабжению","7708503727","246645014","производство (некомбинированная выработка)+передача+сбыт","WARM"]
[146,"Республика Хакасия","Ширинский","95635000","Соленоозерное","95635438","27568286","МУП с.Соленоозерное ЖКХ \"Коммунальщик\"","1911007362","191101001","Передача+Сбыт","WARM"]
[147,"Республика Хакасия","Ширинский","95635000","Соленоозерное","95635438","27568286","МУП с.Соленоозерное ЖКХ \"Коммунальщик\"","1911007362","191101001","производство комбинированная выработка","WARM"]
[148,"Республика Хакасия","Ширинский","95635000","Туимский сельсовет","95635403","26522906","ГУП \"Хакресводоканал\"","1901001202","191001001","производство (некомбинированная выработка)+передача+сбыт","WARM"]
[149,"Республика Хакасия","Ширинский","95635000","Туимский сельсовет","95635403","26824651","Красноярская дирекция по тепловодоснабжению","7708503727","246645014","производство (некомбинированная выработка)+передача+сбыт","WARM"]
[150,"Республика Хакасия","Ширинский","95635000","Туимский сельсовет","95635403","28422385","ООО \"Хакасресводоканал Ширинского района\"","1911008422","191101001","производство (некомбинированная выработка)+передача+сбыт","WARM"]
[151,"Республика Хакасия","Ширинский","95635000","Туимский сельсовет","95635403","28872996","ООО \"Хакресводоканал Ширинского района\"","1911008542","191101001","производство (некомбинированная выработка)+передача+сбыт","WARM"]
[152,"Республика Хакасия","Ширинский","95635000","Туимский сельсовет","95635403","30388824","ООО УК \"Наш дом\"","1911008302","191101001","Теплоноситель - Сбыт :: Производство :: Передача","WARM"]
[153,"Республика Хакасия","Ширинский","95635000","Туимский сельсовет","95635403","30388824","ООО УК \"Наш дом\"","1911008302","191101001","производство (некомбинированная выработка)+передача+сбыт","WARM"]
[154,"Республика Хакасия","Ширинский","95635000","Фыркальское","95635450","26824651","Красноярская дирекция по тепловодоснабжению","7708503727","246645014","производство (некомбинированная выработка)+передача+сбыт","WARM"]
[155,"Республика Хакасия","Ширинский","95635000","Фыркальское","95635450","26961082","МУП ЖКХ \"ВодТехСервис\"","1911008038","191101001","производство (некомбинированная выработка)+передача+сбыт","WARM"]
[156,"Республика Хакасия","Ширинский","95635000","Фыркальское","95635450","30862195","МУП ЖКХ \"Фыркал\"","1903025520","190301001","производство (некомбинированная выработка)+передача+сбыт","WARM"]
[157,"Республика Хакасия","Ширинский","95635000","Целинное","95635455","26824651","Красноярская дирекция по тепловодоснабжению","7708503727","246645014","производство (некомбинированная выработка)+передача+сбыт","WARM"]
[158,"Республика Хакасия","Ширинский","95635000","Целинное","95635455","26354692","МУП \"ЖКХ п.Целинное\"","1911005816","191101001","производство (некомбинированная выработка)+передача+сбыт","WARM"]
[159,"Республика Хакасия","Ширинский","95635000","Целинное","95635455","30388793","ООО \"ТВР\"","1911008729","191101001","Теплоноситель - Сбыт","WARM"]
[160,"Республика Хакасия","Ширинский","95635000","Целинное","95635455","30388793","ООО \"ТВР\"","1911008729","191101001","производство (некомбинированная выработка)","WARM"]
[161,"Республика Хакасия","Ширинский","95635000","Целинное","95635455","30388793","ООО \"ТВР\"","1911008729","191101001","производство (некомбинированная выработка)+передача+сбыт","WARM"]
[162,"Республика Хакасия","Ширинский","95635000","Целинное","95635455","30864933","ООО \"ТеплоСети\"","1903025544","190301001","Теплоноситель - Сбыт :: Производство :: Передача","WARM"]
[163,"Республика Хакасия","Ширинский","95635000","Целинное","95635455","30864933","ООО \"ТеплоСети\"","1903025544","190301001","производство (некомбинированная выработка)+передача+сбыт","WARM"]
[164,"Республика Хакасия","Ширинский","95635000","Целинное","95635455","28872996","ООО \"Хакресводоканал Ширинского района\"","1911008542","191101001","производство (некомбинированная выработка)+передача+сбыт","WARM"]
[165,"Республика Хакасия","Ширинский","95635000","Черноозерное","95635460","26824651","Красноярская дирекция по тепловодоснабжению","7708503727","246645014","производство (некомбинированная выработка)+передача+сбыт","WARM"]
[166,"Республика Хакасия","Ширинский","95635000","Ширинский сельсовет","95635404","26522906","ГУП \"Хакресводоканал\"","1901001202","191001001","производство (некомбинированная выработка)+передача+сбыт","WARM"]
[167,"Республика Хакасия","Ширинский","95635000","Ширинский сельсовет","95635404","26824651","Красноярская дирекция по тепловодоснабжению","7708503727","246645014","производство (некомбинированная выработка)+передача+сбыт","WARM"]
[168,"Республика Хакасия","Ширинский","95635000","Ширинский сельсовет","95635404","26354693","ООО \"Коммунальник\"","1911007690","191101001","производство (некомбинированная выработка)+передача+сбыт","WARM"]
[169,"Республика Хакасия","Ширинский","95635000","Ширинский сельсовет","95635404","28870673","ООО \"Фирма \"Ригор\"","2466095756","246601001","Теплоноситель - Сбыт :: Производство :: Передача","WARM"]
[170,"Республика Хакасия","Ширинский","95635000","Ширинский сельсовет","95635404","28870673","ООО \"Фирма \"Ригор\"","2466095756","246601001","производство (некомбинированная выработка)+передача+сбыт","WARM"]
[171,"Республика Хакасия","Ширинский","95635000","Ширинский сельсовет","95635404","28422385","ООО \"Хакасресводоканал Ширинского района\"","1911008422","191101001","производство (некомбинированная выработка)+передача+сбыт","WARM"]
[172,"Республика Хакасия","Ширинский","95635000","село Джирим","95635420","28036643","МУП ЖКХ \"Коммунальщик с.Джирим\"","1911008310","191101001","производство (некомбинированная выработка)","WARM"]
[173,"Республика Хакасия","город Абаза","95702000","город Абаза","95702000","26522906","ГУП \"Хакресводоканал\"","1901001202","191001001","производство (некомбинированная выработка)+передача+сбыт","WARM"]
[174,"Республика Хакасия","город Абаза","95702000","город Абаза","95702000","26354679","ООО \"Абаза-Энерго\"","1909051981","190901001","производство (некомбинированная выработка)+передача+сбыт","WARM"]
[175,"Республика Хакасия","город Абаза","95702000","город Абаза","95702000","27753258","ООО \"УК \"Наш дом\"","1909000585","190901001","производство (некомбинированная выработка)+передача+сбыт","WARM"]
[176,"Республика Хакасия","город Абакан","95701000","город Абакан","95701000","30406011","АО «ГУ ЖКХ»","5116000922","246545001","Теплоноситель - Сбыт :: Производство :: Передача","WARM"]
[177,"Республика Хакасия","город Абакан","95701000","город Абакан","95701000","30406011","АО «ГУ ЖКХ»","5116000922","246545001","производство (некомбинированная выработка)+передача+сбыт","WARM"]
[178,"Республика Хакасия","город Абакан","95701000","город Абакан","95701000","26522906","ГУП \"Хакресводоканал\"","1901001202","191001001","производство (некомбинированная выработка)+передача+сбыт","WARM"]
[179,"Республика Хакасия","город Абакан","95701000","город Абакан","95701000","26824651","Красноярская дирекция по тепловодоснабжению","7708503727","246645014","производство (некомбинированная выработка)+передача+сбыт","WARM"]
[180,"Республика Хакасия","город Абакан","95701000","город Абакан","95701000","26354638","МОУ ДОД \"Спорт.оздор. база \"Меридиан\"","1901065679","190101001","производство (некомбинированная выработка)+передача+сбыт","WARM"]
[181,"Республика Хакасия","город Абакан","95701000","город Абакан","95701000","26450581","МП \"Абаканские тепловые сети\"","1901003640","190101001","производство (некомбинированная выработка)+передача+сбыт","WARM"]
[182,"Республика Хакасия","город Абакан","95701000","город Абакан","95701000","26354637","МУП \"Управляющая жилищная компания\" (электробойлерная ул.Мира)","1901069722","190101001","производство (некомбинированная выработка)+сбыт","WARM"]
[183,"Республика Хакасия","город Абакан","95701000","город Абакан","95701000","26358524","Мостоотряд-91 АФ ОАО \"Сибмост\"","5407127899","190102001","производство (некомбинированная выработка)+передача+сбыт","WARM"]
[184,"Республика Хакасия","город Абакан","95701000","город Абакан","95701000","28869185","ООО \"Южно-Сибирская теплосетевая компания\"","1901116531","190101001","производство (некомбинированная выработка)+передача","WARM"]
[185,"Республика Хакасия","город Абакан","95701000","город Абакан","95701000","26571178","Пассажирское вагонное депо Абакан – структурное подразделение Енисейского филиала ОАО «Федеральная пассажирская компания»","7708709686","190145001","производство (некомбинированная выработка)+передача+сбыт","WARM"]
[186,"Республика Хакасия","город Абакан","95701000","город Абакан","95701000","26449407","Свечинский районный телекоммуникационный узел (РТУ) Кировского филиала ОАО \"Волгателеком\"","5260901817","432832002","производство (некомбинированная выработка)+передача+сбыт","WARM"]
[187,"Республика Хакасия","город Абакан","95701000","город Абакан","95701000","26425314","Филиал \"Абаканская ТЭЦ\"  АО \"Енисейская ТГК (ТГК-13)\"","1901067718","190103001","Передача+Сбыт","WARM"]
[188,"Республика Хакасия","город Абакан","95701000","город Абакан","95701000","26425314","Филиал \"Абаканская ТЭЦ\"  АО \"Енисейская ТГК (ТГК-13)\"","1901067718","190103001","Теплоноситель - Сбыт :: Производство :: Передача","WARM"]
[189,"Республика Хакасия","город Абакан","95701000","город Абакан","95701000","26425314","Филиал \"Абаканская ТЭЦ\"  АО \"Енисейская ТГК (ТГК-13)\"","1901067718","190103001","производство комбинированная выработка","WARM"]
[190,"Республика Хакасия","город Абакан","95701000","город Абакан","95701000","27568998","Филиал ОАО \"Ремонтно-эксплуатационное управление\" \"Иркутский\" Хакасия","7714783092","381843001","производство (некомбинированная выработка)+передача+сбыт","WARM"]
[191,"Республика Хакасия","город Саяногорск","95708000","город Саяногорск","95708000","27675852","АО \"Мобильные ГТЭС\"","7706627050","190245001","производство комбинированная выработка","WARM"]
[192,"Республика Хакасия","город Саяногорск","95708000","город Саяногорск","95708000","26354640","ИП Басков В.В.","190200321555","190201001","производство (некомбинированная выработка)","WARM"]
[193,"Республика Хакасия","город Саяногорск","95708000","город Саяногорск","95708000","26354643","МУП \"Тепловые сети\"","1902017371","190201003","производство (некомбинированная выработка)+передача+сбыт","WARM"]
[194,"Республика Хакасия","город Саяногорск","95708000","город Саяногорск","95708000","26354645","ОАО \"СШ ТК РусГидро\"","1902018248","190201001","производство (некомбинированная выработка)+передача+сбыт","WARM"]
[195,"Республика Хакасия","город Саяногорск","95708000","город Саяногорск","95708000","26354642","ООО \"Теплоресурс\"","1902015423","190201001","производство (некомбинированная выработка)+передача+сбыт","WARM"]
[196,"Республика Хакасия","город Саяногорск","95708000","город Саяногорск","95708000","28150844","ООО \"Хакасские коммунальные системы\"","1902024682","190201001","производство (некомбинированная выработка)","WARM"]
[197,"Республика Хакасия","город Саяногорск","95708000","город Саяногорск","95708000","27568933","ОП ЗАО \"Байкалэнерго\" - \"Саяногорские тепловые сети\"","3808108339","381201001","производство (некомбинированная выработка)+передача+сбыт","WARM"]
[198,"Республика Хакасия","город Сорск","95709000","город Сорск","95709000","26522906","ГУП \"Хакресводоканал\"","1901001202","191001001","производство (некомбинированная выработка)+передача+сбыт","WARM"]
[199,"Республика Хакасия","город Сорск","95709000","город Сорск","95709000","28975239","МУП \"Коммунальные системы\"","1910013229","191001001","производство (некомбинированная выработка)+передача+сбыт","WARM"]
[200,"Республика Хакасия","город Сорск","95709000","город Сорск","95709000","28873567","ООО \"Горизонт\"","1911008461","191101001","производство (некомбинированная выработка)+передача+сбыт","WARM"]
[201,"Республика Хакасия","город Сорск","95709000","город Сорск","95709000","26523584","ООО \"Сорский ГОК\"","1910006486","191001001","Теплоноситель - Производство","WARM"]
[202,"Республика Хакасия","город Сорск","95709000","город Сорск","95709000","26523584","ООО \"Сорский ГОК\"","1910006486","191001001","производство (некомбинированная выработка)+сбыт","WARM"]
[203,"Республика Хакасия","город Сорск","95709000","город Сорск","95709000","28422371","ООО \"Хакасресводоканал\"","1910012754","191001001","производство (некомбинированная выработка)+передача+сбыт","WARM"]
[204,"Республика Хакасия","город Черногорск","95715000","город Черногорск","95715000","26522906","ГУП \"Хакресводоканал\"","1901001202","191001001","производство (некомбинированная выработка)+передача+сбыт","WARM"]
[205,"Республика Хакасия","город Черногорск","95715000","город Черногорск","95715000","30866350","ООО \"ИДЕАЛ-ЭНЕРГО\"","1901070069","190101000","Теплоноситель - Сбыт :: Производство :: Передача","WARM"]
[206,"Республика Хакасия","город Черногорск","95715000","город Черногорск","95715000","30866350","ООО \"ИДЕАЛ-ЭНЕРГО\"","1901070069","190101000","производство (некомбинированная выработка)+передача+сбыт","WARM"]
[207,"Республика Хакасия","город Черногорск","95715000","город Черногорск","95715000","26354654","ООО \"СУЭК-Хакасия\"","1903017342","190301001","производство (некомбинированная выработка)+передача+сбыт","WARM"]
[208,"Республика Хакасия","город Черногорск","95715000","город Черногорск","95715000","28263400","ООО \"ТеплоРесурс\"","1903021797","190301001","производство (некомбинированная выработка)+передача","WARM"]
[209,"Республика Хакасия","город Черногорск","95715000","город Черногорск","95715000","30866363","ООО \"ТеплоЭнергоРесурс\"","9715262748","771501001","Теплоноситель - Сбыт :: Производство :: Передача","WARM"]
[210,"Республика Хакасия","город Черногорск","95715000","город Черногорск","95715000","30866363","ООО \"ТеплоЭнергоРесурс\"","9715262748","771501001","производство (некомбинированная выработка)+передача+сбыт","WARM"]
[211,"Республика Хакасия","город Черногорск","95715000","город Черногорск","95715000","26354657","ООО \"Тепловые системы\"","1903017744","190301001","производство (некомбинированная выработка)+передача+сбыт","WARM"]
[212,"Республика Хакасия","город Черногорск","95715000","город Черногорск","95715000","26354656","ООО \"Теплосервис\"","1903017751","190301001","производство (некомбинированная выработка)+передача+сбыт","WARM"]
[213,"Республика Хакасия","город Черногорск","95715000","город Черногорск","95715000","26354650","ООО \"ХакТЭК\"","1903013620","190301001","производство (некомбинированная выработка)+передача+сбыт","WARM"]

{"sheet":"modClassifierValidate","index":24,"n_rows":0,"n_cols":0,"rows_kept":0,"hidden":true}

{"sheet":"modProv","index":25,"n_rows":0,"n_cols":0,"rows_kept":0,"hidden":true}

{"sheet":"modHyp","index":26,"n_rows":0,"n_cols":0,"rows_kept":0,"hidden":true}

{"sheet":"modList00","index":27,"n_rows":0,"n_cols":0,"rows_kept":0,"hidden":true}

{"sheet":"modList02","index":28,"n_rows":0,"n_cols":0,"rows_kept":0,"hidden":true}

{"sheet":"modList03","index":29,"n_rows":0,"n_cols":0,"rows_kept":0,"hidden":true}

{"sheet":"modList04","index":30,"n_rows":0,"n_cols":0,"rows_kept":0,"hidden":true}

{"sheet":"modList05","index":31,"n_rows":0,"n_cols":0,"rows_kept":0,"hidden":true}

{"sheet":"modList06","index":32,"n_rows":0,"n_cols":0,"rows_kept":0,"hidden":true}

{"sheet":"modList07","index":33,"n_rows":0,"n_cols":0,"rows_kept":0,"hidden":true}

{"sheet":"modfrmDateChoose","index":34,"n_rows":0,"n_cols":0,"rows_kept":0,"hidden":true}

{"sheet":"modComm","index":35,"n_rows":0,"n_cols":0,"rows_kept":0,"hidden":true}

{"sheet":"modThisWorkbook","index":36,"n_rows":0,"n_cols":0,"rows_kept":0,"hidden":true}

{"sheet":"REESTR_MO","index":37,"n_rows":103,"n_cols":4,"rows_kept":103,"hidden":true}
["№","МР","МО","МО_ОКТМО"]
[1,"Алтайский","Алтайский","95605000"]
[2,"Алтайский","Аршановское","95605405"]
[3,"Алтайский","Белоярское","95605410"]
[4,"Алтайский","Изыхское","95605418"]
[5,"Алтайский","Кировское","95605420"]
[6,"Алтайский","Краснопольское","95605425"]
[7,"Алтайский","Новомихайловское","95605430"]
[8,"Алтайский","Новороссийское","95605435"]
[9,"Алтайский","Очурское","95605440"]
[10,"Алтайский","Подсинское","95605445"]
[11,"Аскизский","Аскизский","95608000"]
[12,"Аскизский","Аскизское","95608405"]
[13,"Аскизский","Базинское","95608410"]
[14,"Аскизский","Балыксинское","95608409"]
[15,"Аскизский","Бельтирское","95608412"]
[16,"Аскизский","Бирикчульское","95608413"]
[17,"Аскизский","Верх-Аскизское","95608415"]
[18,"Аскизский","Есинское","95608420"]
[19,"Аскизский","Кызласское","95608430"]
[20,"Аскизский","Поселок Аскиз","95608151"]
[21,"Аскизский","Поселок Бискамжа","95608165"]
[22,"Аскизский","Поселок Вершина Теи","95608169"]
[23,"Аскизский","Пуланкольское","95608440"]
[24,"Аскизский","Усть-Камыштинское","95608450"]
[25,"Аскизский","Усть-Чульское","95608455"]
[26,"Бейский","Бейский","95612000"]
[27,"Бейский","Бейское","95612405"]
[28,"Бейский","Большемонокское","95612410"]
[29,"Бейский","Бондаревское","95612415"]
[30,"Бейский","Кирбинское","95612425"]
[31,"Бейский","Куйбышевское","95612430"]
[32,"Бейский","Межселенные территории, находящиеся вне границ сельских поселений Бейского района","95612701"]
[33,"Бейский","Новоенисейское","95612440"]
[34,"Бейский","Новотроицкое","95612445"]
[35,"Бейский","Сабинское","95612455"]
[36,"Бейский","Табатское","95612460"]
[37,"Боградский","Боградский","95615000"]
[38,"Боградский","Боградское","95615410"]
[39,"Боградский","Большеербинское","95615415"]
[40,"Боградский","Бородинское","95615420"]
[41,"Боградский","Знаменское","95615430"]
[42,"Боградский","Первомайское","95615440"]
[43,"Боградский","Пушновское","95615445"]
[44,"Боградский","Сарагашское","95615450"]
[45,"Боградский","Советско-Хакасское","95615455"]
[46,"Боградский","Сонское","95615460"]
[47,"Боградский","Троицкое","95615404"]
[48,"Орджоникидзевский","Гайдаровское","95620405"]
[49,"Орджоникидзевский","Копьёвский поссовет","95620403"]
[50,"Орджоникидзевский","Копьёвский сельсовет","95620420"]
[51,"Орджоникидзевский","Красноиюсское","95620425"]
[52,"Орджоникидзевский","Новомарьясовское","95620430"]
[53,"Орджоникидзевский","Орджоникидзевский","95620000"]
[54,"Орджоникидзевский","Приисковое","95620437"]
[55,"Орджоникидзевский","Саралинское","95620440"]
[56,"Орджоникидзевский","Устинкинское","95620450"]
[57,"Орджоникидзевский","с. Орджоникидзевское","95620435"]
[58,"Таштыпский","Анчулское","95625405"]
[59,"Таштыпский","Арбатское","95625408"]
[60,"Таштыпский","Большесейское","95625415"]
[61,"Таштыпский","Бутрахтинское","95625420"]
[62,"Таштыпский","Имекское","95625422"]
[63,"Таштыпский","Матурское","95625425"]
[64,"Таштыпский","Межселенная территория Таштыпского муниципального района, включающая п Кубайка, п Большой Он, п Малый Анзас","95625702"]
[65,"Таштыпский","Нижнесирское","95625430"]
[66,"Таштыпский","Таштыпский","95625000"]
[67,"Таштыпский","Таштыпское","95625440"]
[68,"Усть-Абаканский","Вершино-Биджинское","95630405"]
[69,"Усть-Абаканский","Весенненское","95630410"]
[70,"Усть-Абаканский","Доможаковское","95630415"]
[71,"Усть-Абаканский","Калининское","95630425"]
[72,"Усть-Абаканский","Московское","95630430"]
[73,"Усть-Абаканский","Опытненское","95630435"]
[74,"Усть-Абаканский","Поселок Усть-Абакан","95630151"]
[75,"Усть-Абаканский","Райковское","95630440"]
[76,"Усть-Абаканский","Расцветовское","95630445"]
[77,"Усть-Абаканский","Сапоговское","95630455"]
[78,"Усть-Абаканский","Солнечное","95630460"]
[79,"Усть-Абаканский","Усть-Абаканский","95630000"]
[80,"Усть-Абаканский","Усть-Бюрское","95630465"]
[81,"Усть-Абаканский","Чарковское","95630470"]
[82,"Ширинский","Беренжакское","95635405"]
[83,"Ширинский","Борцовское","95635410"]
[84,"Ширинский","Воротское","95635415"]
[85,"Ширинский","Ефремкинское","95635425"]
[86,"Ширинский","Жемчужненский сельсовет","95635430"]
[87,"Ширинский","Коммунаровский сельсовет","95635401"]
[88,"Ширинский","Селосонское","95635435"]
[89,"Ширинский","Соленоозерное","95635438"]
[90,"Ширинский","Спиринское","95635440"]
[91,"Ширинский","Туимский сельсовет","95635403"]
[92,"Ширинский","Фыркальское","95635450"]
[93,"Ширинский","Целинное","95635455"]
[94,"Ширинский","Черноозерное","95635460"]
[95,"Ширинский","Ширинский","95635000"]
[96,"Ширинский","Ширинский сельсовет","95635404"]
[97,"Ширинский","село Джирим","95635420"]
[98,"город Абаза","город Абаза","95702000"]
[99,"город Абакан","город Абакан","95701000"]
[100,"город Саяногорск","город Саяногорск","95708000"]
[101,"город Сорск","город Сорск","95709000"]
[102,"город Черногорск","город Черногорск","95715000"]

{"sheet":"modfrmReestrMR","index":38,"n_rows":0,"n_cols":0,"rows_kept":0,"hidden":true}

{"sheet":"modfrmCheckUpdates","index":39,"n_rows":0,"n_cols":0,"rows_kept":0,"hidden":true}

{"sheet":"CopyList","index":40,"n_rows":13,"n_cols":9,"rows_kept":13,"hidden":true}
{"$rows_empty":11}
[{"$nulls":4},"Наименование поставщика",null,"№ п/п","Способ приобретения"]
[{"$nulls":7},"Способ приобретения","Реквизиты договора"]